{"text_format":"1","workbook":"xlsx","n_sheets":6,"sheets":["Anleitung","Anlagenartenkatalog UZH","Anlagenparameter","Eingabe für Planer","Kontrolle für Planer","UsrAnlagen"],"not_rendered":{"charts":0,"images":1,"macros":1,"external_links":0,"defined_names":2,"comments":1,"pivot_tables":0},"unopened":[],"bounds":{"document_bytes":16777216,"sheet_cells":100000,"rows_first":2000,"rows_last":500,"rows_between":2000,"halvings":0,"cell_chars":16384,"cell_head_chars":4096},"cells_cut":0,"cells_raw":0,"read":"whole","date_system":"1900"}

{"sheet":"Anleitung","index":0,"n_rows":28,"n_cols":6,"rows_kept":28,"cut":false,"hidden":false,"merged":[[0,0,1,0]]}
["Anlagenkonzept\n\nZiele\n•\tSchnelle und eindeutige Identifikation der Anlagen in Planon sowie ZLS\n•\tMöglichst effiziente Prozesse, wenig Pflege- und Administrationsaufwand\n•\tDatengrundlage für Instandhaltungsstrategie\n•\tDatengrundlage für Massnahmen- und Instandsetzungsplanung\n•\tDatengrundlage Betriebsoptimierung\n•\tDatengrundlage Risk Based Maintenance\n\nAnleitung für Planer\nVariante 1 mit Makro (nur Windows)\n1.\tBlatt «Eingabe für Planer» öffnen\n2.\tAnlagenfelder von oben nach unten ausfüllen, Beispiele, Erläuterungen sowie Legende der Farbcodes beachten\n3.\tDie erforderlichen (blau markiert) Felder bei der Anmerkung ausfüllen, Beispiele sowie Legende der Farbcodes beachten.\n4.\tMakro ausführen: «Anlage Hinzufügen (Windows!)»\n5.\tFortfahren mit Schritt 2. für nächste Anlage, bis alle Anlagen erfasst sind.\n6.\tBlatt «Kontrolle für Planer» öffnen\n7.\tEingaben kontrollieren.\n\nVariante 2 für eine grosse Anzahl von gleichen Anlagentypen\na)\tSchritte 1. bis und mit 4. der Variante 1 Ausführen, um ein Beispiel für den erforderlichen Anlagentyp zu erhalten.\nb)\tDas erhaltene Beispiel im Blatt \"Kontrolle für Planer\" kopieren, unten einfügen und anpassen (z.B. MSRL-Code, Bezeichnung, Raumkennzeichen, Seriennummer, Anmerkung)."]
[]
["Anleitung zum Ausfüllen vom Blatt \"Importfile CAFM Planon\" - für jede Anlage zu wiederholen"]
["Spalte","Beschreibung","Informationsquelle / Blatt","Hinweis für Planer, um die gelben Felder im \"Importfile CAFM Planon\" auszufüllen","Beispiel","Hinweis UZH intern"]
["A",{"$f":"INDIRECT(\"'UsrAnlagen'!\"&A5&\"9\")","v":"Bezeichnung"},"-","leer lassen"]
["B",{"$f":"INDIRECT(\"'UsrAnlagen'!\"&A6&\"9\")","v":"Code"},"-","MSRL-Code einfügen resp. Anlagen-Code falls kein MSRL-Code vorhanden, siehe Richtlinien zur Bauwerksdokumentation","GLL_C_G201_A001"]
["C",{"$f":"INDIRECT(\"'UsrAnlagen'!\"&A7&\"9\")","v":"Bezeichnung"},"Anlagenartenkatalog UZH, Spalte B","Die Spalte \"C\", \"Bezeichnung\" vom Blatt \"Importfile CAFM Planon\" ist grundsätzlich gleich wie die Beschreibung, aber bei mehreren gleichchnamigen Anlagen ist eine Nummerierung (oder eindeutige Identifikation wie rechts / links) hinzuzufügen z.B. \"Lüftungsanlage 1\" und \"Lüftungsanlage 2\", welche auch auf den Anlagen vor Ort angebracht ist.","Personenlift Nr. 42502790"]
["D",{"$f":"INDIRECT(\"'UsrAnlagen'!\"&A8&\"9\")","v":"Beschreibung"},"Anlagenartenkatalog UZH, Spalte D","Im Blatt \"Anlagenartenkatalog UZH\" steht die Auswahl der \"Anlagentypen\" in Spalte \"D\" zur Auswahl. Es dürfen explizit nur diese Begriffe in dieser Schreibweise in Spalte \"D\" verwendet werden (die Planer können die farblichen Markierungen ignorieren - sie dienen nur internen Zwecken). --> Der Anlagentyp ist im Blatt \"Importfile CAFM Planon\" in Spalte \"D\", \"Beschreibung\" einzufügen.","Personenlift"]
["E",{"$f":"INDIRECT(\"'UsrAnlagen'!\"&A9&\"9\")","v":"Artikelgruppe"},"Anlagenartenkatalog UZH, Spalte A","Die Spalte \"E\", \"Artikelgruppe\" vom Blatt \"Importfile CAFM Planon\" ist mit der entsprechenden \"Code-Gruppe\", Spalte \"A\" vom Blatt \"Anlagenartenkatalog UZH\" einzufügen. (kann mittels SVERWEIS automatisiert werden)","02.09.02"]
["F",{"$f":"INDIRECT(\"'UsrAnlagen'!\"&A10&\"9\")","v":"Hauptanlage"},"-","leer lassen","-"]
["G",{"$f":"INDIRECT(\"'UsrAnlagen'!\"&A11&\"9\")","v":"Einfacher Bestandteil"},"\"True\"","Immer mit \"True\" ausfüllen.","True"]
["H",{"$f":"INDIRECT(\"'UsrAnlagen'!\"&A12&\"9\")","v":"Anmerkung"},"Datenfeldkatalog DC SOF, Spalte C","Restposten - Sofern die Parameter nicht in die Spalten I-U eingetragen werden können: Im \"Datenfeldkatalog DC SOF\" ist in der Spalte \"A\" nach dem Anlagentyp gemäss Bezeichnung zu suchen. Die entsprechenden Parameter gemäss \"Parameterebene\" sind im Importfile, Spalte \"H\" einzufügen. Beispiel: \"Parameterebene\" = \"Druck (Bar)\" --> \"Druck (Bar): 2.3\" einfügen. Bei mehreren Informationen mit einem Absatz aneinanderreihen.","Pikett-Tel.: 044 838 38 38\nStockwerke: 5 / E,F,G,H,J\nStandort Maschinenraum: Geschoss J-401 neben Lift\nTel. Typ: Exicall\nTel Nr.: 044 636 90 12 \nLift ausser Betrieb nehmen bei Netzwerkunterbruch zur Sicherheit: Nein\nRufnummer Sim Karte: 69012","Die grau hinterlegten Begriffe im Blatt \"Datenfeldkatalog\" in der Spalte \"C\", müssen zusätzlich Angegeben werden. \n\nBeispiel Aufzüge: Servicevertrag, Verträge"]
["I",{"$f":"INDIRECT(\"'UsrAnlagen'!\"&A13&\"9\")","v":"Objekt"},"-","Objektkürzel einfügen z.B. \"SOF\"","GLL"]
["J",{"$f":"INDIRECT(\"'UsrAnlagen'!\"&A14&\"9\")","v":"Raum.Objekt"},"-","Objektkürzel einfügen z.B. \"SOF\"","GLL"]
["K",{"$f":"INDIRECT(\"'UsrAnlagen'!\"&A15&\"9\")","v":"Raum.Raumkennzeichen"},"-","Raumkennzeichen (Raumbezeichnung wird anhand Planon definiert)","E-300"]
["L",{"$f":"INDIRECT(\"'UsrAnlagen'!\"&A16&\"9\")","v":"Hersteller /  Marke"},"-",{"$f":"B16","v":"Hersteller /  Marke"},"Gebauer"]
["M",{"$f":"INDIRECT(\"'UsrAnlagen'!\"&A17&\"9\")","v":"Modell / Artikel"},"-",{"$f":"B17","v":"Modell / Artikel"},"Getriebeaufzug"]
["N",{"$f":"INDIRECT(\"'UsrAnlagen'!\"&A18&\"9\")","v":"Seriennummer"},"-",{"$f":"B18","v":"Seriennummer"},"15008703854"]
["O",{"$f":"INDIRECT(\"'UsrAnlagen'!\"&A19&\"9\")","v":"Servicefirma"},"-","Servicefirma","AS Aufzüge AG","Wird anhand der Kreditorennummer definiert"]
["P",{"$f":"INDIRECT(\"'UsrAnlagen'!\"&A20&\"9\")","v":"Inbetriebnahmedatum"},"-",{"$f":"B20","v":"Inbetriebnahmedatum"},"2050-04-30"]
["Q",{"$f":"INDIRECT(\"'UsrAnlagen'!\"&A21&\"9\")","v":"Garantieende"},"-",{"$f":"B21","v":"Garantieende"},"2055-05-01"]
["R",{"$f":"INDIRECT(\"'UsrAnlagen'!\"&A22&\"9\")","v":"Datum Erfassung"},"-","leer lassen","-"]
["S",{"$f":"INDIRECT(\"'UsrAnlagen'!\"&A23&\"9\")","v":"Herstellungs-/Baudatum"},"-",{"$f":"B23","v":"Herstellungs-/Baudatum"},"2049-05-01"]
["T",{"$f":"INDIRECT(\"'UsrAnlagen'!\"&A24&\"9\")","v":"Servicevertrag"},"-","leer lassen","-"]
["U",{"$f":"INDIRECT(\"'UsrAnlagen'!\"&A25&\"9\")","v":"Erwartetes technisches Enddatum"},"-",{"$f":"B25","v":"Erwartetes technisches Enddatum"},"2075-05-01"]
[]
["Legende"]
["Gelb --> Wertvolle, zwingende Planerangaben für jede Anlage"]

{"sheet":"Anlagenartenkatalog UZH","index":1,"n_rows":180,"n_cols":6,"rows_kept":180,"cut":false,"hidden":false,"merged":[[10,5,11,5],[12,5,14,5]]}
["Artikelgruppe Nummer (verbindliche Artikelgruppe im Importfile Spalte E)","Artikelgruppe Name","Erläuterung","Anlagetypen (verbindliche Beschreibung im Importfile Spalte D)","Hauptanlage oder Unteranlage?","Bemerkung für die Erfassung der Anlage"]
["01.02.04","Türen, Tore und Abschlüsse ","Sicherheitsrelevante Türen, Tore ","Türe/Tor Fluchtweg","Unteranlage","\"Sicherheitsrelevante Türen/Tore Gruppe\" wird als Hauptanlage je Geschoss aufgenommen, die einzelnen Türen/Tore als Unteranlage.\nTüre/Tor-Nummer ersetzt MSRL-Code"]
["01.02.03","Türen, Tore und Abschlüsse ","Sicherheitsrelevante Türen, Tore ","Türe/Tor Fluchtweg kraftbetätigt","Unteranlage","\"Sicherheitsrelevante Türen/Tore Gruppe\" wird als Hauptanlage je Geschoss aufgenommen, die einzelnen Türen/Tore als Unteranlage.\nTüre/Tor-Nummer ersetzt MSRL-Code"]
["01.02.04","Türen, Tore und Abschlüsse ","Sicherheitsrelevante Türen, Tore ","Türe/Tor Brandschutz","Unteranlage","\"Sicherheitsrelevante Türen/Tore Gruppe\" wird als Hauptanlage je Geschoss aufgenommen, die einzelnen Türen/Tore als Unteranlage.\nTüre/Tor-Nummer ersetzt MSRL-Code"]
["01.02.04","Türen, Tore und Abschlüsse ","Sicherheitsrelevante Türen, Tore ","Türe/Tor Brandschutz kraftbetätigt","Unteranlage","\"Sicherheitsrelevante Türen/Tore Gruppe\" wird als Hauptanlage je Geschoss aufgenommen, die einzelnen Türen/Tore als Unteranlage.\nTüre/Tor-Nummer ersetzt MSRL-Code"]
["01.02.04","Türen, Tore und Abschlüsse ","Sicherheitsrelevante Türen, Tore ","Türe/Tor Fluchtweg Brandschutz","Unteranlage","\"Sicherheitsrelevante Türen/Tore Gruppe\" wird als Hauptanlage je Geschoss aufgenommen, die einzelnen Türen/Tore als Unteranlage.\nTüre/Tor-Nummer ersetzt MSRL-Code"]
["01.02.04","Türen, Tore und Abschlüsse ","Sicherheitsrelevante Türen, Tore ","Türe/Tor Fluchtweg Brandschutz kraftbetätigt","Unteranlage","\"Sicherheitsrelevante Türen/Tore Gruppe\" wird als Hauptanlage je Geschoss aufgenommen, die einzelnen Türen/Tore als Unteranlage.\nTüre/Tor-Nummer ersetzt MSRL-Code"]
["01.02.04","Türen, Tore und Abschlüsse ","Sicherheitsrelevante Türen, Tore ","Türe/Tor kraftbetätigt","Unteranlage","\"Sicherheitsrelevante Türen/Tore Gruppe\" wird als Hauptanlage je Geschoss aufgenommen, die einzelnen Türen/Tore als Unteranlage.\nTüre/Tor-Nummer ersetzt MSRL-Code"]
["01.02.04","Türen, Tore und Abschlüsse ","Nicht sicherheitsrelevante Türen und Tore","Türe/Tor","Unteranlage","\"Nicht sicherheitsrelevante Türen/Tore Gruppe\" wird als Hauptanlage je Geschoss aufgenommen, die einzelnen Türen/Tore als Unteranlage. (nicht zwingend im CAFM zu erfassen)\nTüre/Tor-Nummer ist zu erfassen"]
["01.02.05","Fenster","Fenster sind Lichtdurchlässige Bauelemente welche teilweise geöffnet werden können.","Oblicht","Hauptanlage"]
["01.02.07","Storen- / Beschattungsanlagen","Die Storen- und Beschattungsanlage ist ein System, welches zur Regulierung des Licht- und Wärmeeinfalls dient. Sie kann mit einem elektrischen Motor oder von Hand bedient werden. ","Storenanlage","Hauptanlage","Hydraulische Antriebe für Beschattungsanlage werden nicht separat erfasst - sie gehören zur Beschattungsanlage"]
["01.02.07","Storen- / Beschattungsanlagen","Die Storen- und Beschattungsanlage ist ein System, welches zur Regulierung des Licht- und Wärmeeinfalls dient. Sie kann mit einem elektrischen Motor oder von Hand bedient werden. ","Beschattungsanlage","Hauptanlage"]
["02.00.01","Sicherheitsanlagen","Sicherheitsanlagen sind aktive oder passive Anlagenkomponenten, die technische Anlagen und oder Gebäude für den Menschen sicher machen sollen.","Einbruch- und Überfallmeldeanlage (EMA)","Hauptanlage"," "]
["02.00.01","Sicherheitsanlagen","Sicherheitsanlagen sind aktive oder passive Anlagenkomponenten, die technische Anlagen und oder Gebäude für den Menschen sicher machen sollen.","Evakuationsanlage (SAA und ENS)","Hauptanlage"]
["02.00.01","Sicherheitsanlagen","Sicherheitsanlagen sind aktive oder passive Anlagenkomponenten, die technische Anlagen und oder Gebäude für den Menschen sicher machen sollen.","Befeuerungsanlage","Hauptanlage"]
["02.00.04","Schliessysteme","Ein technisches System zur Steuerung von Schliessmechanismen in Türen oder Toren.","Schlüsseldepot","Hauptanlage"]
["02.01.01","Brandmeldeanlagen","Die Brandmeldeanlage ist ein technisches System bestehend aus mehreren Bauteilen die zusammen die Funktion ergeben einen aufkommenden Brand zu detektieren und automatisch den Blaulichtorganisationen zu melden sowie die Personen vor dem Brand zu Warnen und allenfalls den Fluchtweg an zu zeigen. Das technische System beinhaltet zum Beispiel: Zentrale, Sensoren (Brandmelder), Warnleuchten, Signalhörner, Schnittstellen, Verkabelung.","Brandmeldeanlage (BMA)","Hauptanlage"]
["02.01.02","Brandschutz","Die Brandschutzanlage ist ein technisches System bestehend aus mehreren Bauteilen die zusammen die Funktion ergeben Brandabschnitte automatisch durch Türen und Klappen zu verschliessen um eine Brandausbreitung verhindern zu können.","Brandschutzklappe (BSK)","Hauptanlage","Eine fiktive Hauptanlage pro Haus erstellen, die \"realen\" BSK sind als Unteranlage zu erfassen."]
["02.01.03","Löschanlagen","Die Loeschanlage ist ein technisches System bestehend aus mehreren Bauteilen die zusammen die Funktion ergeben einen Brand in einem Gebäude oder Raum automatisch zu löschen. Es gibt unterschiedliche Löschsysteme, je nach Anforderung an die Löschsubstanz. Das technische System beinhaltet zum Beispiel Steuerung, Löschmittelversorgung, Leitungsnetz, Sensoren, Aktoren.","Sprinkleranlage","Hauptanlage"]
["02.01.03","Löschanlagen","Die Loeschanlage ist ein technisches System bestehend aus mehreren Bauteilen die zusammen die Funktion ergeben einen Brand in einem Gebäude oder Raum automatisch zu löschen. Es gibt unterschiedliche Löschsysteme, je nach Anforderung an die Löschsubstanz. Das technische System beinhaltet zum Beispiel Steuerung, Löschmittelversorgung, Leitungsnetz, Sensoren, Aktoren.","Wasserlöschposten (WLP)","Unteranlage","Wasserlöschposten wird als Unteranlage erfasst , wenn die Hauptanlage eine Gruppe ist. Falls nur ein Wasserlöschposten vorhanden ist, wird er als Hauptanlage erfasst."]
["02.01.03","Löschanlagen","Die Loeschanlage ist ein technisches System bestehend aus mehreren Bauteilen die zusammen die Funktion ergeben einen Brand in einem Gebäude oder Raum automatisch zu löschen. Es gibt unterschiedliche Löschsysteme, je nach Anforderung an die Löschsubstanz. Das technische System beinhaltet zum Beispiel Steuerung, Löschmittelversorgung, Leitungsnetz, Sensoren, Aktoren.","Gaslöschanlage","Hauptanlage"]
["02.01.04","Entrauchung","Eine Entrauchungsanlage ist ein technisches System welches Rauch und Wärme aus dem Gebäude abführt. ","Rauch- und Wärmeabzugsanlage (RWA)","Hauptanlage"]
["02.01.04","Entrauchung","Eine Entrauchungsanlage ist ein technisches System welches Rauch und Wärme aus dem Gebäude abführt. ","Rauchschutzdruckanlage (RDA / RWA)","Hauptanlage"]
["02.02.01","Lüftungsanlagen","Die Lueftungsanlage ist ein technisches System bestehend aus mehreren Bauteilen die zusammen die Funktion ergeben Gebäude und Räume automatisch mit der notwendigen Luftqualität zu versorgen. Das technische System beinhaltet zum Beispiel Monoblock, unterschiedliche Register für Kühlung, Erhitzung, Trocknung, Lüftungskanäle, Leitungsnetz, Steuerung, Sensoren, Aktoren; Standort Monoblock => Raum der Lüftungsanlage; Anzahl Monoblocks => Anzahl Lüftungsanlagen","Lüftungsanlage","Hauptanlage","Der Standort vom Monoblock ist der Raum der Lüftungsanlage. Jeder Monoblock ist eine eigene Lüftungsanlage."]
["02.02.01","Lüftungsanlagen","Die Lueftungsanlage ist ein technisches System bestehend aus mehreren Bauteilen die zusammen die Funktion ergeben Gebäude und Räume automatisch mit der notwendigen Luftqualität zu versorgen. Das technische System beinhaltet zum Beispiel Monoblock, unterschiedliche Register für Kühlung, Erhitzung, Trocknung, Lüftungskanäle, Leitungsnetz, Steuerung, Sensoren, Aktoren; Standort Monoblock => Raum der Lüftungsanlage; Anzahl Monoblocks => Anzahl Lüftungsanlagen","Befeuchtungsanlage mit Umlaufwasser","Unteranlage","Unteranlage zur Lüftungsanlage"]
["02.02.01","Lüftungsanlagen","Die Lueftungsanlage ist ein technisches System bestehend aus mehreren Bauteilen die zusammen die Funktion ergeben Gebäude und Räume automatisch mit der notwendigen Luftqualität zu versorgen. Das technische System beinhaltet zum Beispiel Monoblock, unterschiedliche Register für Kühlung, Erhitzung, Trocknung, Lüftungskanäle, Leitungsnetz, Steuerung, Sensoren, Aktoren; Standort Monoblock => Raum der Lüftungsanlage; Anzahl Monoblocks => Anzahl Lüftungsanlagen","Ultraschallbefeuchter","Unteranlage","Unteranlage zur Lüftungsanlage"]
["02.02.01","Lüftungsanlagen","Die Lueftungsanlage ist ein technisches System bestehend aus mehreren Bauteilen die zusammen die Funktion ergeben Gebäude und Räume automatisch mit der notwendigen Luftqualität zu versorgen. Das technische System beinhaltet zum Beispiel Monoblock, unterschiedliche Register für Kühlung, Erhitzung, Trocknung, Lüftungskanäle, Leitungsnetz, Steuerung, Sensoren, Aktoren; Standort Monoblock => Raum der Lüftungsanlage; Anzahl Monoblocks => Anzahl Lüftungsanlagen","Dampfbefeuchter","Unteranlage","Unteranlage zur Lüftungsanlage"]
["02.02.01","Lüftungsanlagen","Die Lueftungsanlage ist ein technisches System bestehend aus mehreren Bauteilen die zusammen die Funktion ergeben Gebäude und Räume automatisch mit der notwendigen Luftqualität zu versorgen. Das technische System beinhaltet zum Beispiel Monoblock, unterschiedliche Register für Kühlung, Erhitzung, Trocknung, Lüftungskanäle, Leitungsnetz, Steuerung, Sensoren, Aktoren; Standort Monoblock => Raum der Lüftungsanlage; Anzahl Monoblocks => Anzahl Lüftungsanlagen","Hochdruckbefeuchtungsanlage","Unteranlage","Unteranlage zur Lüftungsanlage"]
["02.02.01","Lüftungsanlagen","Die Lueftungsanlage ist ein technisches System bestehend aus mehreren Bauteilen die zusammen die Funktion ergeben Gebäude und Räume automatisch mit der notwendigen Luftqualität zu versorgen. Das technische System beinhaltet zum Beispiel Monoblock, unterschiedliche Register für Kühlung, Erhitzung, Trocknung, Lüftungskanäle, Leitungsnetz, Steuerung, Sensoren, Aktoren; Standort Monoblock => Raum der Lüftungsanlage; Anzahl Monoblocks => Anzahl Lüftungsanlagen","Entfeuchtungsanlage","Unteranlage","Unteranlage zur Lüftungsanlage"]
["02.02.01","Lüftungsanlagen","Die Lueftungsanlage ist ein technisches System bestehend aus mehreren Bauteilen die zusammen die Funktion ergeben Gebäude und Räume automatisch mit der notwendigen Luftqualität zu versorgen. Das technische System beinhaltet zum Beispiel Monoblock, unterschiedliche Register für Kühlung, Erhitzung, Trocknung, Lüftungskanäle, Leitungsnetz, Steuerung, Sensoren, Aktoren; Standort Monoblock => Raum der Lüftungsanlage; Anzahl Monoblocks => Anzahl Lüftungsanlagen","Entfeuchter (mobil)","Hauptanlage","Ist auf das entsprechende Lager zu erfassen. Der aktuelle Standort wird über die Arbeitsliste festgehalten. (siehe Beschluss)"]
["02.02.01","Lüftungsanlagen","Die Lueftungsanlage ist ein technisches System bestehend aus mehreren Bauteilen die zusammen die Funktion ergeben Gebäude und Räume automatisch mit der notwendigen Luftqualität zu versorgen. Das technische System beinhaltet zum Beispiel Monoblock, unterschiedliche Register für Kühlung, Erhitzung, Trocknung, Lüftungskanäle, Leitungsnetz, Steuerung, Sensoren, Aktoren; Standort Monoblock => Raum der Lüftungsanlage; Anzahl Monoblocks => Anzahl Lüftungsanlagen","Absorber-Entfeuchtungsanlage","Unteranlage","Unteranlage zur Lüftungsanlage"]
["02.02.01","Lüftungsanlagen","Die Lueftungsanlage ist ein technisches System bestehend aus mehreren Bauteilen die zusammen die Funktion ergeben Gebäude und Räume automatisch mit der notwendigen Luftqualität zu versorgen. Das technische System beinhaltet zum Beispiel Monoblock, unterschiedliche Register für Kühlung, Erhitzung, Trocknung, Lüftungskanäle, Leitungsnetz, Steuerung, Sensoren, Aktoren; Standort Monoblock => Raum der Lüftungsanlage; Anzahl Monoblocks => Anzahl Lüftungsanlagen","Klein-/Zonenventilator","Hauptanlage"]
["02.02.01","Lüftungsanlagen","Die Lueftungsanlage ist ein technisches System bestehend aus mehreren Bauteilen die zusammen die Funktion ergeben Gebäude und Räume automatisch mit der notwendigen Luftqualität zu versorgen. Das technische System beinhaltet zum Beispiel Monoblock, unterschiedliche Register für Kühlung, Erhitzung, Trocknung, Lüftungskanäle, Leitungsnetz, Steuerung, Sensoren, Aktoren; Standort Monoblock => Raum der Lüftungsanlage; Anzahl Monoblocks => Anzahl Lüftungsanlagen","Liftventilator","Hauptanlage"]
["02.02.01","Lüftungsanlagen","Die Lueftungsanlage ist ein technisches System bestehend aus mehreren Bauteilen die zusammen die Funktion ergeben Gebäude und Räume automatisch mit der notwendigen Luftqualität zu versorgen. Das technische System beinhaltet zum Beispiel Monoblock, unterschiedliche Register für Kühlung, Erhitzung, Trocknung, Lüftungskanäle, Leitungsnetz, Steuerung, Sensoren, Aktoren; Standort Monoblock => Raum der Lüftungsanlage; Anzahl Monoblocks => Anzahl Lüftungsanlagen","WC-Lüfter","Hauptanlage"]
["02.02.01","Lüftungsanlagen","Die Lueftungsanlage ist ein technisches System bestehend aus mehreren Bauteilen die zusammen die Funktion ergeben Gebäude und Räume automatisch mit der notwendigen Luftqualität zu versorgen. Das technische System beinhaltet zum Beispiel Monoblock, unterschiedliche Register für Kühlung, Erhitzung, Trocknung, Lüftungskanäle, Leitungsnetz, Steuerung, Sensoren, Aktoren; Standort Monoblock => Raum der Lüftungsanlage; Anzahl Monoblocks => Anzahl Lüftungsanlagen","Dampfabzug","Unteranlage","Sofern möglich als Unteranlage zur Lüftungsanlage erfassen"]
["02.02.01","Lüftungsanlagen","Die Lueftungsanlage ist ein technisches System bestehend aus mehreren Bauteilen die zusammen die Funktion ergeben Gebäude und Räume automatisch mit der notwendigen Luftqualität zu versorgen. Das technische System beinhaltet zum Beispiel Monoblock, unterschiedliche Register für Kühlung, Erhitzung, Trocknung, Lüftungskanäle, Leitungsnetz, Steuerung, Sensoren, Aktoren; Standort Monoblock => Raum der Lüftungsanlage; Anzahl Monoblocks => Anzahl Lüftungsanlagen","Erdverlegte Komponenten","Unteranlage","Unteranlage zur Lüftungsanlage"]
["02.02.01","Lüftungsanlagen","Die Lueftungsanlage ist ein technisches System bestehend aus mehreren Bauteilen die zusammen die Funktion ergeben Gebäude und Räume automatisch mit der notwendigen Luftqualität zu versorgen. Das technische System beinhaltet zum Beispiel Monoblock, unterschiedliche Register für Kühlung, Erhitzung, Trocknung, Lüftungskanäle, Leitungsnetz, Steuerung, Sensoren, Aktoren; Standort Monoblock => Raum der Lüftungsanlage; Anzahl Monoblocks => Anzahl Lüftungsanlagen","Rotationswärmetauscher (WRG)","Unteranlage","Unteranlage zur Lüftungsanlage"]
["02.02.01","Lüftungsanlagen","Die Lueftungsanlage ist ein technisches System bestehend aus mehreren Bauteilen die zusammen die Funktion ergeben Gebäude und Räume automatisch mit der notwendigen Luftqualität zu versorgen. Das technische System beinhaltet zum Beispiel Monoblock, unterschiedliche Register für Kühlung, Erhitzung, Trocknung, Lüftungskanäle, Leitungsnetz, Steuerung, Sensoren, Aktoren; Standort Monoblock => Raum der Lüftungsanlage; Anzahl Monoblocks => Anzahl Lüftungsanlagen","Plattenwärmetauscher (WRG)","Unteranlage","Unteranlage zur Lüftungsanlage"]
["02.02.01","Lüftungsanlagen","Die Lueftungsanlage ist ein technisches System bestehend aus mehreren Bauteilen die zusammen die Funktion ergeben Gebäude und Räume automatisch mit der notwendigen Luftqualität zu versorgen. Das technische System beinhaltet zum Beispiel Monoblock, unterschiedliche Register für Kühlung, Erhitzung, Trocknung, Lüftungskanäle, Leitungsnetz, Steuerung, Sensoren, Aktoren; Standort Monoblock => Raum der Lüftungsanlage; Anzahl Monoblocks => Anzahl Lüftungsanlagen","Kreisverbundsystem (WRG)","Unteranlage","Unteranlage zur Lüftungsanlage"]
["02.02.01","Lüftungsanlagen","Die Lueftungsanlage ist ein technisches System bestehend aus mehreren Bauteilen die zusammen die Funktion ergeben Gebäude und Räume automatisch mit der notwendigen Luftqualität zu versorgen. Das technische System beinhaltet zum Beispiel Monoblock, unterschiedliche Register für Kühlung, Erhitzung, Trocknung, Lüftungskanäle, Leitungsnetz, Steuerung, Sensoren, Aktoren; Standort Monoblock => Raum der Lüftungsanlage; Anzahl Monoblocks => Anzahl Lüftungsanlagen","Umluftklappe (UML-Klappe)","Unteranlage","Unteranlage zur Lüftungsanlage"]
["02.02.01","Lüftungsanlagen","Die Lueftungsanlage ist ein technisches System bestehend aus mehreren Bauteilen die zusammen die Funktion ergeben Gebäude und Räume automatisch mit der notwendigen Luftqualität zu versorgen. Das technische System beinhaltet zum Beispiel Monoblock, unterschiedliche Register für Kühlung, Erhitzung, Trocknung, Lüftungskanäle, Leitungsnetz, Steuerung, Sensoren, Aktoren; Standort Monoblock => Raum der Lüftungsanlage; Anzahl Monoblocks => Anzahl Lüftungsanlagen","Zuluftanlage (ZUL-Anlage)","Unteranlage","Unteranlage zur Lüftungsanlage"]
["02.02.01","Lüftungsanlagen","Die Lueftungsanlage ist ein technisches System bestehend aus mehreren Bauteilen die zusammen die Funktion ergeben Gebäude und Räume automatisch mit der notwendigen Luftqualität zu versorgen. Das technische System beinhaltet zum Beispiel Monoblock, unterschiedliche Register für Kühlung, Erhitzung, Trocknung, Lüftungskanäle, Leitungsnetz, Steuerung, Sensoren, Aktoren; Standort Monoblock => Raum der Lüftungsanlage; Anzahl Monoblocks => Anzahl Lüftungsanlagen","Abluftanlage (ABL-Anlage)","Unteranlage","Unteranlage zur Lüftungsanlage"]
["02.02.02","Klimaanlagen","Eine Klimaanlage ist ein technisches System bestehend aus mehreren Bauteilen zur Regulierung der Raumluftkonditionen, es ist zwischen zentralen und dezentralen Anlagen, sowie zwischen Anlagen mit und ohne Kühlmittel zu unterscheiden ","Split-Klimaanlage","Hauptanlage","Für Umluftkühleräte sowie Split-Klimaanlagen werden jeweils Gruppen erstellt und die jeweiligen Anlagen als Unteranlagen erfasst."]
["02.02.02","Klimaanlagen","Eine Klimaanlage ist ein technisches System bestehend aus mehreren Bauteilen zur Regulierung der Raumluftkonditionen, es ist zwischen zentralen und dezentralen Anlagen, sowie zwischen Anlagen mit und ohne Kühlmittel zu unterscheiden ","Umluftkühlgerät (ULK)","Hauptanlage","Für Umluftkühleräte sowie Split-Klimaanlagen werden jeweils Gruppen erstellt und die jeweiligen Anlagen als Unteranlagen erfasst. / Umluftkühlgeräte: ggf. mit Wasser"]
["02.02.02","Klimaanlagen","Eine Klimaanlage ist ein technisches System bestehend aus mehreren Bauteilen zur Regulierung der Raumluftkonditionen, es ist zwischen zentralen und dezentralen Anlagen, sowie zwischen Anlagen mit und ohne Kühlmittel zu unterscheiden ","Klimaanlage mit integrierter Kälteanlage","Hauptanlage"]
["02.02.02","Klimaanlagen","Eine Klimaanlage ist ein technisches System bestehend aus mehreren Bauteilen zur Regulierung der Raumluftkonditionen, es ist zwischen zentralen und dezentralen Anlagen, sowie zwischen Anlagen mit und ohne Kühlmittel zu unterscheiden ","Kühlgerät (mobil)","Hauptanlage","Ist auf das entsprechende Lager zu erfassen. Der aktuelle Standort wird über die Arbeitsliste festgehalten. (siehe Beschluss)"]
["02.03.01","Innenbeleuchtung","Innenbeleuchtung umfasst sämtliche Beleuchtungsanlagen im Innenraum von Gebäuden","Innenbeleuchtungssteuerung","Hauptanlage"]
["02.03.02","Aussenbeleuchtung","Aussenbeleuchtung umfasst sämtliche Beleuchtungsanlagen im Aussenberreich","Aussenbeleuchtungssteuerung","Hauptanlage"]
["02.03.03","Notbeleuchtung","Notbeleuchtungsanlagen sind einzelne Anlagen oder Systeme, welche bei Stromausfall genügend Licht zur Orientierung im Gebäude und Signalisierung der Fluchtwege bereitstellen. ","Sicherheitsbeleuchtungsanlage","Hauptanlage"]
["02.04.00","Elektroverteilungen (Schaltschränke)","Eine Elektroverteilungsanlage oder Schaltschrank beinhaltet Sicherungs- und Schaltelemente zur Verteilung von elektrischer Energie ","Elektrohauptverteilung (HV)","Hauptanlage"]
["02.04.00","Elektroverteilungen (Schaltschränke)",null,"Elektrounterverteilung (UV)","Unteranlage","Die \"Unterverteilung (UV)\" wird als Unteranlage zur Hauptverteilung (HV) erfasst. Die \"Unterstation (US)\" wird ebenfalls als Unteranlage erfasst (gleiche Ebene wie UV), jedoch 04.02.02 Automationsstationen zugeordnet. In Ausnahmefällen können US als Unter-Unteranlage erfasst werden."]
["02.04.02","Starkstrominstallationen","Starkstrominstallationen enthält die Installationen welche die Apparate Starkstrom mit Strom versorgen. ","Kompensationsanlage","Hauptanlage"]
["02.04.02","Starkstrominstallationen","Starkstrominstallationen enthält die Installationen welche die Apparate Starkstrom mit Strom versorgen. ","Netzersatzanlage (NEA)","Hauptanlage","Netzersatzanlage (NEA) ist als Hauptanlage zu erfassen, Generator, Batterieanlage und Netzkoppler ist als Unteranlage zu erfassen. Die USV-Anlage sowie die übrigen sind als separate Anlagen zu erfassen."]
["02.04.02","Starkstrominstallationen","Starkstrominstallationen enthält die Installationen welche die Apparate Starkstrom mit Strom versorgen. ","Generator","Unteranlage","Netzersatzanlage (NEA) ist als Hauptanlage zu erfassen, Generator, Batterieanlage und Netzkoppler ist als Unteranlage zu erfassen. Die USV-Anlage sowie die übrigen sind als separate Anlagen zu erfassen."]
["02.04.02","Starkstrominstallationen","Starkstrominstallationen enthält die Installationen welche die Apparate Starkstrom mit Strom versorgen. ","Batterieanlage","Unteranlage","Netzersatzanlage (NEA) ist als Hauptanlage zu erfassen, Generator, Batterieanlage und Netzkoppler ist als Unteranlage zu erfassen. Die USV-Anlage sowie die übrigen sind als separate Anlagen zu erfassen."]
["02.04.02","Starkstrominstallationen","Starkstrominstallationen enthält die Installationen welche die Apparate Starkstrom mit Strom versorgen. ","Netzkoppler","Unteranlage","Netzersatzanlage (NEA) ist als Hauptanlage zu erfassen, Generator, Batterieanlage und Netzkoppler ist als Unteranlage zu erfassen. Die USV-Anlage sowie die übrigen sind als separate Anlagen zu erfassen."]
["02.04.02","Starkstrominstallationen","Starkstrominstallationen enthält die Installationen welche die Apparate Starkstrom mit Strom versorgen. ","Photovoltaikanlage","Hauptanlage"]
["02.04.02","Starkstrominstallationen","Starkstrominstallationen enthält die Installationen welche die Apparate Starkstrom mit Strom versorgen. ","USV-Anlage","Hauptanlage"]
["02.04.02","Starkstrominstallationen","Starkstrominstallationen enthält die Installationen welche die Apparate Starkstrom mit Strom versorgen. ","USV (mobil)","Hauptanlage","Ab 3.6kW auf das entsprechende Lager zu erfassen. Der aktuelle Standort wird über die Arbeitsliste festgehalten. (siehe Beschluss)"]
["02.04.04 ","Schwachstrominstallationen","Schwachstrominstallationen enthalten die Installationen welche die Apparate mit -Schwachstrom versorgen. ","Gegensprechanlage","Hauptanlage"]
["02.04.04 ","Schwachstrominstallationen","Schwachstrominstallationen enthalten die Installationen welche die Apparate mit -Schwachstrom versorgen. ","Sonnerie","Hauptanlage"]
["02.04.10","Mittelspannungsanlagen (Trafostationen)","Mittelspannungsanlagen (Trafostationen) dienen der Umwandlung von Mittelspannung in Niederspannung","Mittelspannungsanlage","Hauptanlage","Die Mittelspannungsanlage wird als Hauptanlage erfasst, die Schalter, Messfeld und Transformatoren werden als Unteranlagen erfasst."]
["02.04.10","Mittelspannungsanlagen (Trafostationen)","Mittelspannungsanlagen (Trafostationen) dienen der Umwandlung von Mittelspannung in Niederspannung","Transformator","Unteranlage"]
["02.04.10","Mittelspannungsanlagen (Trafostationen)","Mittelspannungsanlagen (Trafostationen) dienen der Umwandlung von Mittelspannung in Niederspannung","Messfeld","Unteranlage"]
["02.04.10","Mittelspannungsanlagen (Trafostationen)","Mittelspannungsanlagen (Trafostationen) dienen der Umwandlung von Mittelspannung in Niederspannung","Mittelspannungsschalter","Unteranlage"]
["02.05","Sanitär","In der Artikelgruppe Sanitär werden Anlagen erfasst, die nicht den Unterkategorien der Sanitär-Artikelgruppen zugeordnet werden können.","Wasserbecken","Hauptanlage","Beton- / Stahlbecken, grösser, meist kein offensichtlicher Einlauf"]
["02.05","Sanitär","In der Artikelgruppe Sanitär werden Anlagen erfasst, die nicht den Unterkategorien der Sanitär-Artikelgruppen zugeordnet werden können.","Druckerhöhungsanlage","Unteranlage","Die Regenwassernutzungsanlage sowie Regenwasserbewässerungsanlage werden als Hauptanlage, die Fassung, Speicherung und Verteilung als Unteranlage erfasst."]
["02.05","Sanitär","In der Artikelgruppe Sanitär werden Anlagen erfasst, die nicht den Unterkategorien der Sanitär-Artikelgruppen zugeordnet werden können.","Teichanlage","Hauptanlage","Natürlich angelegt - ggf. mit Erde / Seerosen usw."]
["02.05","Sanitär","In der Artikelgruppe Sanitär werden Anlagen erfasst, die nicht den Unterkategorien der Sanitär-Artikelgruppen zugeordnet werden können.","Brunnenanlage","Hauptanlage","Eher klein, meist mit plätscherndem Wasser"]
["02.05","Sanitär","In der Artikelgruppe Sanitär werden Anlagen erfasst, die nicht den Unterkategorien der Sanitär-Artikelgruppen zugeordnet werden können.","Trinkwasserbrunnen","Hauptanlage","Ausschliesslich um zu Trinken - z.B. Flasche auffüllen"]
["02.05.02","Regenwasser","Regenwasseranlagen dienen der Speicherung und Weiterverwendung von Regenwasser","Regenwassernutzungsanlage","Hauptanlage","Die Regenwassernutzungsanlage sowie Regenwasserbewässerungsanlage werden als Hauptanlage, die Fassung, Speicherung und Verteilung als Unteranlage erfasst."]
["02.05.02","Regenwasser","Regenwasseranlagen dienen der Speicherung und Weiterverwendung von Regenwasser","Regenwasserbewässerungsanlage","Hauptanlage","Die Regenwassernutzungsanlage sowie Regenwasserbewässerungsanlage werden als Hauptanlage, die Fassung, Speicherung und Verteilung als Unteranlage erfasst."]
["02.05.02","Regenwasser","Regenwasseranlagen dienen der Speicherung und Weiterverwendung von Regenwasser","Fassung","Unteranlage","Die Regenwassernutzungsanlage sowie Regenwasserbewässerungsanlage werden als Hauptanlage, die Fassung, Speicherung und Verteilung als Unteranlage erfasst."]
["02.05.02","Regenwasser","Regenwasseranlagen dienen der Speicherung und Weiterverwendung von Regenwasser","Speicherung","Unteranlage","Die Regenwassernutzungsanlage sowie Regenwasserbewässerungsanlage werden als Hauptanlage, die Fassung, Speicherung und Verteilung als Unteranlage erfasst."]
["02.05.02","Regenwasser","Regenwasseranlagen dienen der Speicherung und Weiterverwendung von Regenwasser","Verteilung","Unteranlage","Die Regenwassernutzungsanlage sowie Regenwasserbewässerungsanlage werden als Hauptanlage, die Fassung, Speicherung und Verteilung als Unteranlage erfasst."]
["02.05.04","Wasseraufbereitung","Wasseraufbereitungsanlagen dienen der zielgerichteten Veränderung der Wasserqualität","Enthärtungsanlage","Hauptanlage"]
["02.05.04","Wasseraufbereitung","Wasseraufbereitungsanlagen dienen der zielgerichteten Veränderung der Wasserqualität","Osmoseanlage","Hauptanlage"]
["02.05.04","Wasseraufbereitung","Wasseraufbereitungsanlagen dienen der zielgerichteten Veränderung der Wasserqualität","Grundwasserpumpe"]
["02.05.05","Wasserverteilung","Wasserverteilungsnlagen dienen der Verteilung des Trink- und Bruachwassers.","Wasserfilter","Hauptanlage","Filterrückspülautomat, Ventilspülautomat mit vak klären: \"Wasserfilter\" aufnehmen mit folgenden Attributen: \"Typ\" (z.B. Filterrückspülautomat, kurzer Filter von Hand auswechseln, langer Filter von Hand auswechseln; \"Fabrikat\"; \"Mass\"; \"Intervall\"; \"Bemerkung\" (keine Pflichtfeld)"]
["02.05.05","Wasserverteilung","Wasserverteilungsnlagen dienen der Verteilung des Trink- und Bruachwassers.","Trinkwasser-Systemtrenngerät","Hauptanlage"]
["02.05.05","Wasserverteilung","Wasserverteilungsnlagen dienen der Verteilung des Trink- und Bruachwassers.","Aussenwasserhahn","Hauptanlage"]
["02.05.05","Wasserverteilung","Wasserverteilungsnlagen dienen der Verteilung des Trink- und Bruachwassers.","Spülautomat","Hauptanlage"]
["02.05.05","Wasserverteilung","Wasserverteilungsnlagen dienen der Verteilung des Trink- und Bruachwassers.","Bewässerungsanlage","Hauptanlage"]
["02.05.07","Brauchwarmwasser","Brauchwarmwasseranlagen werden zur Erstellung und Lagerung von Brauchwarmwasser verwendet.","Trinkwarmwasser","Hauptanlage"]
["02.05.07","Brauchwarmwasser","Brauchwarmwasseranlagen werden zur Erstellung und Lagerung von Brauchwarmwasser verwendet.","Boiler","Unteranlage","Hauptanlage: Trinkwarmwasser"]
["02.05.07","Brauchwarmwasser","Brauchwarmwasseranlagen werden zur Erstellung und Lagerung von Brauchwarmwasser verwendet.","Boiler mit Plattenwärmetauscher","Unteranlage","Hauptanlage: Trinkwarmwasser"]
["02.05.07","Brauchwarmwasser","Brauchwarmwasseranlagen werden zur Erstellung und Lagerung von Brauchwarmwasser verwendet.","Frischwasserstation","Unteranlage","Hauptanlage: Trinkwarmwasser (siehe Beschluss)"]
["02.05.07","Brauchwarmwasser","Brauchwarmwasseranlagen werden zur Erstellung und Lagerung von Brauchwarmwasser verwendet.","Zirkulationsleitung","Unteranlage","Hauptanlage: Trinkwarmwasser"]
["02.05.07","Brauchwarmwasser","Brauchwarmwasseranlagen werden zur Erstellung und Lagerung von Brauchwarmwasser verwendet.","Durchlauferhitzer","Unteranlage","Hauptanlage: Trinkwarmwasser"]
["02.05.08","Abwasser","Durch Gebrauch verschmutztes abfliessendes Wasser.","Neutralisation","Hauptanlage"]
["02.05.08","Abwasser","Durch Gebrauch verschmutztes abfliessendes Wasser.","Schmutzwasserpumpe","Hauptanlage"]
["02.05.08","Abwasser","Durch Gebrauch verschmutztes abfliessendes Wasser.","Fäkalienpumpe","Hauptanlage"]
["02.05.08","Abwasser","Durch Gebrauch verschmutztes abfliessendes Wasser.","Grundwasserpumpe","Hauptanlage"]
["02.05.08","Abwasser","Durch Gebrauch verschmutztes abfliessendes Wasser.","Wasserlose Urinale","Hauptanlage","Wasserlose Urinale werden als Gruppe als Hauptanlage erfasst"]
["02.05.08","Abwasser","Durch Gebrauch verschmutztes abfliessendes Wasser.","Closomat","Hauptanlage"]
["02.05.08","Abwasser","Durch Gebrauch verschmutztes abfliessendes Wasser.","Kupfer-Adsorber","Hauptanlage"]
["02.05.10","Not- und Augenduschen","Einrichtung zur Ersten Hilfe, wenn Personen mit Säure, Laugen, Hitze, etc. in Kontakt kommen können.","Notdusche","Unteranlage","Not- und Augendusche werden als Unteranlage erfasst , wenn die Hauptanlage eine Gruppe ist. Falls nur ein Not- oder Augendusche vorhanden ist, wird sie als Hauptanlage erfasst."]
["02.05.10","Not- und Augenduschen","Einrichtung zur Ersten Hilfe, wenn Personen mit Säure, Laugen, Hitze, etc. in Kontakt kommen können.","Augendusche","Unteranlage"]
["02.05.13","Gase allgemein","Gase allgemein enthält Gaswarnanlagen und Flaschenbatterien zur Aufbewahrung von Gasen","Gaswarnanlage","Hauptanlage","Attribut: Medium, Standort vom Sensor aufnehmen"]
["02.06","Wärme","Die Wärmeverteilung im Gebäude sowie Fernwärmeleitungen usw. sind Teil der Heizungsanlage.","Fernwärmeübergabestation","Hauptanlage","Inkl. Heisswasserumformer / Wärmetauscher"]
["02.06","Wärme","Die Wärmeverteilung im Gebäude sowie Fernwärmeleitungen usw. sind Teil der Heizungsanlage.","Dampfumformer","Unteranlage","Unteranlage zur Fernwärmeübergabestation; inkl. Kondensatgefäss"]
["02.06","Wärme","Die Wärmeverteilung im Gebäude sowie Fernwärmeleitungen usw. sind Teil der Heizungsanlage.","Dampferzeugungsanlage","Hauptanlage"]
["02.06","Wärme","Die Wärmeverteilung im Gebäude sowie Fernwärmeleitungen usw. sind Teil der Heizungsanlage.","Wärmepumpe","Hauptanlage","Wärmepumpe als Hauptanlage aufnehmen. Energiequelle in der Anmerkung erfassen (Luft/Wasser/Erde)"]
["02.06","Wärme","Die Wärmeverteilung im Gebäude sowie Fernwärmeleitungen usw. sind Teil der Heizungsanlage.","Fernwärmeunterstation","Hauptanlage"]
["02.07.01","Heizungsanlage","Heizungsanlagen dienen zur Erwärmung von Gebäuden oder einzelnen Räumen.","Heizungsanlage","Hauptanlage","\"Heizungsanlage\" beim Feld \"Bezeichnung\" zutreffender Begriff wählen (Fernwärme Heizung, Gas Heizung, Öl Heizung usw.)"]
["02.07.01","Heizungsanlage","Heizungsanlagen dienen zur Erwärmung von Gebäuden oder einzelnen Räumen.","Kessel","Unteranlage"]
["02.07.01","Heizungsanlage","Heizungsanlagen dienen zur Erwärmung von Gebäuden oder einzelnen Räumen.","Kamin","Unteranlage"]
["02.07.02","Heizungsanlage","Heizungsanlagen dienen zur Erwärmung von Gebäuden oder einzelnen Räumen.","Öl Tank","Unteranlage"]
["02.07.01","Heizungsanlage","Heizungsanlagen dienen zur Erwärmung von Gebäuden oder einzelnen Räumen.","Brenner","Unteranlage"]
["02.07.01","Heizungsanlage","Heizungsanlagen dienen zur Erwärmung von Gebäuden oder einzelnen Räumen.","Rampenheizung","Hauptanlage"]
["02.07.05","Begleitheizungen","Begleitheizungen dienen der aufrechterhaltung einer Mindesttemperatur zur Verhinderung von Frostbildung","Begleitheizung","Hauptanlage","Z.B. bei den Dachrinnen"]
["02.08","Kälte","Die Kälte umfasst die Bereiche Kälte-Erzeugung, Umformung, Kälteverteilung sowie Kühl- und Tiefkühlräume","Kältemaschine","Unteranlage","Hauptanlage: Kälteanlage"]
["02.08","Kälte","Die Kälte umfasst die Bereiche Kälte-Erzeugung, Umformung, Kälteverteilung sowie Kühl- und Tiefkühlräume","Kälteanlage","Hauptanlage"]
["02.08","Kälte","Die Kälte umfasst die Bereiche Kälte-Erzeugung, Umformung, Kälteverteilung sowie Kühl- und Tiefkühlräume","Rückkühler","Hauptanlage"]
["02.08","Kälte","Die Kälte umfasst die Bereiche Kälte-Erzeugung, Umformung, Kälteverteilung sowie Kühl- und Tiefkühlräume","Kälteübergabestation","Hauptanlage"]
["02.08","Kälte","Die Kälte umfasst die Bereiche Kälte-Erzeugung, Umformung, Kälteverteilung sowie Kühl- und Tiefkühlräume","Kälteunterstation","Hauptanlage"]
["02.08","Kälte","Die Kälte umfasst die Bereiche Kälte-Erzeugung, Umformung, Kälteverteilung sowie Kühl- und Tiefkühlräume","Kühlraum","Unteranlage","Kühlzelle ist in Kühlraum enthalten, der Begriff wird als solcher nicht verwendet, die Hauptanlage ist die Kälteanlage"]
["02.08","Kälte","Die Kälte umfasst die Bereiche Kälte-Erzeugung, Umformung, Kälteverteilung sowie Kühl- und Tiefkühlräume","Tiefkühlraum","Hauptanlage"]
["02.09.02","Aufzüge","Diese Artikelgruppe enthält Anlagen zur vertikalen Beförderung von Waren und Personen","Autolift","Hauptanlage"]
["02.09.02","Aufzüge","Diese Artikelgruppe enthält Anlagen zur vertikalen Beförderung von Waren und Personen","Hebebühne","Hauptanlage"]
["02.09.02","Aufzüge","Diese Artikelgruppe enthält Anlagen zur vertikalen Beförderung von Waren und Personen","Kleinwarenaufzug","Hauptanlage"]
["02.09.02","Aufzüge","Diese Artikelgruppe enthält Anlagen zur vertikalen Beförderung von Waren und Personen","Personenlift","Hauptanlage"]
["02.09.02","Aufzüge","Diese Artikelgruppe enthält Anlagen zur vertikalen Beförderung von Waren und Personen","Plattformlift","Hauptanlage"]
["02.09.02","Aufzüge","Diese Artikelgruppe enthält Anlagen zur vertikalen Beförderung von Waren und Personen","Treppenlift","Hauptanlage"]
["02.09.02","Aufzüge","Diese Artikelgruppe enthält Anlagen zur vertikalen Beförderung von Waren und Personen","Warenlift","Hauptanlage"]
["02.09.02","Aufzüge","Diese Artikelgruppe enthält Anlagen zur vertikalen Beförderung von Waren und Personen","Behindertenlift","Hauptanlage"]
["02.09.02","Aufzüge","Diese Artikelgruppe enthält Anlagen zur vertikalen Beförderung von Waren und Personen","Bücherlift","Hauptanlage"]
["02.09.02","Aufzüge","Diese Artikelgruppe enthält Anlagen zur vertikalen Beförderung von Waren und Personen","Baldachinaufzug","Hauptanlage"]
["02.09.04","Kraneinrichtungen","Die Krananlage ist ein technisches System bestehend aus mehreren Bauteilen die zusammen die Funktion ergeben den Umschlag von Waren zu gewährleisten. Die Fassadenbefahranlage ermöglicht den MA Zugang zu schwer erreichbaren Stellen und gehört ebenfalls zu den Kraneinrichtungen","Fassadenlift","Hauptanlage"]
["02.09.04","Kraneinrichtungen","Die Krananlage ist ein technisches System bestehend aus mehreren Bauteilen die zusammen die Funktion ergeben den Umschlag von Waren zu gewährleisten. Die Fassadenbefahranlage ermöglicht den MA Zugang zu schwer erreichbaren Stellen und gehört ebenfalls zu den Kraneinrichtungen","Fassadenbühne","Hauptanlage"]
["02.09.04","Kraneinrichtungen","Die Krananlage ist ein technisches System bestehend aus mehreren Bauteilen die zusammen die Funktion ergeben den Umschlag von Waren zu gewährleisten. Die Fassadenbefahranlage ermöglicht den MA Zugang zu schwer erreichbaren Stellen und gehört ebenfalls zu den Kraneinrichtungen","Fensterreinigungslift","Hauptanlage"]
["02.11","Geräte (Haushalt)","Enthält verschiedene Haushaltsgeräte","Waschmaschine","Hauptanlage"]
["02.11","Geräte (Haushalt)","Enthält verschiedene Haushaltsgeräte","Tumbler","Hauptanlage"]
["02.13","Druckgeräte","Behälter, Rohrleitungen, Ausrüstungsteile mit Sicherheitsfunktion und druckhaltende Ausrüstungsteile sowie alle an drucktragenden Teilen angebrachten Elemente wie Flansche, Stutzen, Kupplungen, Trageelemente, Hebeösen; b. Behälter: ein geschlossenes Bauteil, das zur Aufnahme von unter Druck stehenden Fluiden ausgelegt und gebaut ist, einschliesslich der direkt angebrachten Teile bis hin zur Vorrichtung für den Anschluss an andere Geräte; ein Behälter kann mehrere Druckräume aufweisen","Expansionsgefäss","Unteranlage","Expansionsgefässe sind wenn immer möglich als Unteranlage zu erfassen (Ölheizung, Gasheizung, Fernwärme, Kälteanlage usw.); Kompressoren für RWA werden nicht separat erfasst - sie gehören zur RWA"]
["02.13","Druckgeräte","Behälter, Rohrleitungen, Ausrüstungsteile mit Sicherheitsfunktion und druckhaltende Ausrüstungsteile sowie alle an drucktragenden Teilen angebrachten Elemente wie Flansche, Stutzen, Kupplungen, Trageelemente, Hebeösen; b. Behälter: ein geschlossenes Bauteil, das zur Aufnahme von unter Druck stehenden Fluiden ausgelegt und gebaut ist, einschliesslich der direkt angebrachten Teile bis hin zur Vorrichtung für den Anschluss an andere Geräte; ein Behälter kann mehrere Druckräume aufweisen","Druckluftanlage","Hauptanlage","Expansionsgefässe sind wenn immer möglich als Unteranlage zu erfassen; Kompressoren für RWA werden nicht separat erfasst - sie gehören zur RWA"]
["02.13","Druckgeräte","Behälter, Rohrleitungen, Ausrüstungsteile mit Sicherheitsfunktion und druckhaltende Ausrüstungsteile sowie alle an drucktragenden Teilen angebrachten Elemente wie Flansche, Stutzen, Kupplungen, Trageelemente, Hebeösen; b. Behälter: ein geschlossenes Bauteil, das zur Aufnahme von unter Druck stehenden Fluiden ausgelegt und gebaut ist, einschliesslich der direkt angebrachten Teile bis hin zur Vorrichtung für den Anschluss an andere Geräte; ein Behälter kann mehrere Druckräume aufweisen","Reinluftdruckanlage","Hauptanlage","Expansionsgefässe sind wenn immer möglich als Unteranlage zu erfassen; Kompressoren für RWA werden nicht separat erfasst - sie gehören zur RWA"]
["03.04","Meteostation","Anlage zur Messung der Wetterbedingungen. ","Meteostation","Hauptanlage"]
["04.02.01","Leitsystem","Auf der Managementebene erfolgt das übergeordnete Bedienen und Beobachten der Prozesse und die Alarmierung bei Störungen.","Managementebene","Hauptanlage"]
["04.02.02","Automationsstationen","Die Automationsebene übernimmt die Aufgabe die gebäudetechnischen Anlagen zu steuern und zu regeln.","Unterstation (US)","Hauptanlage","US wird im Namen spezifiziert: US11 / US12 / usw. oder H960 K940 L980"]
["04.02.02","Automationsstationen","Die Automationsebene übernimmt die Aufgabe die gebäudetechnischen Anlagen zu steuern und zu regeln.","SPS","Unteranlage","Die SPS wird als Unteranlage zur Unterstation (US) erfasst."]
["04.07","Kücheneinrichtungen","Enthält verschiedene Küchengeräte im Gastrobereich","Fritteuse","Hauptanlage"]
["04.07","Kücheneinrichtungen","Enthält verschiedene Küchengeräte im Gastrobereich","Kippkochkessel","Hauptanlage"]
["04.07","Kücheneinrichtungen","Enthält verschiedene Küchengeräte im Gastrobereich","Kippbratpfanne","Hauptanlage"]
["04.07","Kücheneinrichtungen","Enthält verschiedene Küchengeräte im Gastrobereich","Kombi-Steamer","Hauptanlage"]
["04.07","Kücheneinrichtungen","Enthält verschiedene Küchengeräte im Gastrobereich","Induktionsherd","Hauptanlage"]
["04.07","Kücheneinrichtungen","Enthält verschiedene Küchengeräte im Gastrobereich","Kühlschrank","Hauptanlage"]
["04.07","Kücheneinrichtungen","Enthält verschiedene Küchengeräte im Gastrobereich","Getränkekühlschrank","Hauptanlage"]
["04.07","Kücheneinrichtungen","Enthält verschiedene Küchengeräte im Gastrobereich","Bainmarie","Hauptanlage"]
["04.07","Kücheneinrichtungen","Enthält verschiedene Küchengeräte im Gastrobereich","Wärmestrahler","Hauptanlage"]
["04.07","Kücheneinrichtungen","Enthält verschiedene Küchengeräte im Gastrobereich","Bandwaschmaschine","Hauptanlage"]
["04.07","Kücheneinrichtungen","Enthält verschiedene Küchengeräte im Gastrobereich","Schlauchhaspel","Hauptanlage"]
["04.07","Kücheneinrichtungen","Enthält verschiedene Küchengeräte im Gastrobereich","Förderband","Hauptanlage"]
["04.07","Kücheneinrichtungen","Enthält verschiedene Küchengeräte im Gastrobereich","Kochherd","Hauptanlage"]
["04.07","Kücheneinrichtungen","Enthält verschiedene Küchengeräte im Gastrobereich","Spülmaschine","Hauptanlage"]
["04.07","Kücheneinrichtungen","Enthält verschiedene Küchengeräte im Gastrobereich","Ofen","Hauptanlage"]
["04.07","Kücheneinrichtungen","Enthält verschiedene Küchengeräte im Gastrobereich","Geschirrspülautomat","Hauptanlage"]
["04.07","Kücheneinrichtungen","Enthält verschiedene Küchengeräte im Gastrobereich","Tellerwärmevorrichtung","Hauptanlage","Tellerwärmeschrank, Tellerwermeschubladen, Tassenwärmestapel usw."]
["04.07","Kücheneinrichtungen","Enthält verschiedene Küchengeräte im Gastrobereich","Steamer","Hauptanlage","inkl. Heissluftdämpfer"]
["04.07","Kücheneinrichtungen","Enthält verschiedene Küchengeräte im Gastrobereich","Abfallkühlschrank","Hauptanlage"]
["04.07","Kücheneinrichtungen","Enthält verschiedene Küchengeräte im Gastrobereich","Haubenspülmaschine","Hauptanlage"]
["04.07","Kücheneinrichtungen","Enthält verschiedene Küchengeräte im Gastrobereich","Gläserspülmaschine","Hauptanlage"]
["04.07","Kücheneinrichtungen","Enthält verschiedene Küchengeräte im Gastrobereich","Schockfroster","Hauptanlage"]
["04.07","Kücheneinrichtungen","Enthält verschiedene Küchengeräte im Gastrobereich","Kühlkorps","Unteranlage","Hauptanlage: Kälteanlage"]
["04.07","Kücheneinrichtungen","Enthält verschiedene Küchengeräte im Gastrobereich","Kühlschublade","Unteranlage","Hauptanlage: Kälteanlage"]
["04.07","Kücheneinrichtungen","Enthält verschiedene Küchengeräte im Gastrobereich","Kühlwanne","Unteranlage","Hauptanlage: Kälteanlage, es gibt Kühlwannen ohne Anschluss an die Kälteanlage (nur mit Eis gefüllt), diese sind als Hauptanlage aufzunehmen"]
["04.07","Kücheneinrichtungen","Enthält verschiedene Küchengeräte im Gastrobereich","Tiefkühlschrank","Unteranlage","Hauptanlage: Kälteanlage, es gibt autonome Anlagen, diese sind als Hauptanlage aufzunehmen"]
["04.07","Kücheneinrichtungen","Enthält verschiedene Küchengeräte im Gastrobereich","Kühlvitrine","Unteranlage","Hauptanlage: Kälteanlage"]
["04.07","Kücheneinrichtungen","Enthält verschiedene Küchengeräte im Gastrobereich","Tiefkühlkorpus","Hauptanlage"]
["04.07","Kücheneinrichtungen","Enthält verschiedene Küchengeräte im Gastrobereich","Einfahrkühlschrank","Unteranlage","Hauptanlage: Kälteanlage"]
["04.07","Kücheneinrichtungen","Enthält verschiedene Küchengeräte im Gastrobereich","Kombikühlschrank","Unteranlage","Hauptanlage: Kälteanlage, es gibt autonome Anlagen, diese sind als Hauptanlage aufzunehmen"]
["04.07","Kücheneinrichtungen","Enthält verschiedene Küchengeräte im Gastrobereich","Weinkühler","Hauptanlage"]
["04.07","Kücheneinrichtungen","Enthält verschiedene Küchengeräte im Gastrobereich","Geschirrspüler","Hauptanlage"]
["04.07","Kücheneinrichtungen","Enthält verschiedene Küchengeräte im Gastrobereich","Eismaschine","Hauptanlage"]
["04.08","Laboreinrichtung","Enthält verschiedene Laborzubehör","Erdgas- Bunsenbrenner","Unteranlage","Erdgas-Bunsenbrenner wird als Unteranlage erfasst , wenn die Hauptanlage eine Gruppe ist. Falls nur ein Erdgas-Bunsenbrenner vorhanden ist, wird er als Hauptanlage erfasst."]
["04.08","Laboreinrichtung","Enthält verschiedene Laborzubehör","Eismaschine","Hauptanlage"]
["04.08","Laboreinrichtung","Enthält verschiedene Laborzubehör","Laborkapelle","Hauptanlage"]
["04.08","Laboreinrichtung","Enthält verschiedene Laborzubehör","Autoklav","Hauptanlage","Autoklav fest installiert"]
["04.08","Laboreinrichtung","Enthält verschiedene Laborzubehör","Phytotron","Hauptanlage"]
["04.08","Laboreinrichtung","Enthält verschiedene Laborzubehör","Konstantraum","Hauptanlage"]
["04.08","Laboreinrichtung","Enthält verschiedene Laborzubehör","Tiefkühler (mobil)","Hauptanlage","Ist auf das entsprechende Lager zu erfassen. Der aktuelle Standort wird über die Arbeitsliste festgehalten. (siehe Beschluss)"]

{"sheet":"Anlagenparameter","index":2,"n_rows":373,"n_cols":11,"rows_kept":373,"cut":false,"hidden":false,"merged":[]}
[]
[null,null,"Anlageart","Anlagetyp","Parameterebene","Feldtyp","Beispiel","Erläuterung",null,{"$f":"'Anlagenartenkatalog UZH'!B1","v":"Artikelgruppe Name"},"Anlagentyp"]
[null,null,"Not- und Augenduschen","Augendusche","Anzahl Anlagen","Zahl",13,null,null,{"$f":"_xlfn._xlws.SORT(_xlfn.UNIQUE('Anlagenartenkatalog UZH'!B2:'Anlagenartenkatalog UZH'!B180))","v":"Abwasser"},{"$f":"_xlfn._xlws.SORT(_xlfn.UNIQUE(IF('Eingabe für Planer'!G4='Anlagenartenkatalog UZH'!B2:B180,'Anlagenartenkatalog UZH'!D2:D180,\"\")))","v":""}]
[null,null,"Not- und Augenduschen","Augendusche","Bemerkung Standort","Text","In Holdecke",null,null,"Aufzüge"]
[null,null,"Wasserverteilung","Aussenwasserhahnen","Frostschutz-\nsicherung vorhanden","Text","Nein",null,null,"Aussenbeleuchtung"]
[null,null,"Wasserverteilung","Aussenwasserhahnen","Anzahl Wartungen pro Jahr","Zahl",1,null,null,"Automationsstationen"]
[null,null,"Wasserverteilung","Aussenwasserhahnen","Standort Abstellhahn","Text","2OG / Maschinenraum",null,null,"Begleitheizungen"]
[null,null,"Aufzüge","Autolift","Anzahl Wartungen pro Jahr","Zahl",2,null,null,"Brandmeldeanlagen"]
[null,null,"Aufzüge","Autolift","Antriebsart","Text","elektrisch",null,null,"Brandschutz"]
[null,null,"Aufzüge","Autolift","BFST über BMA","Text","intern","BFST = Brandfallsteuerung",null,"Brauchwarmwasser"]
[null,null,"Aufzüge","Autolift","E-Alarm /PSA (AlarmierungLeitsystem)","Text","Ja oder Nein",null,null,"Druckgeräte"]
[null,null,"Aufzüge","Autolift","Leitsys.typ.","Text","ZLS",null,null,"Elektroverteilungen (Schaltschränke)"]
[null,null,"Aufzüge","Autolift","Lift ausser Betrieb nehmen\nbei Netzwerkunterbruch\nzur Sicherheit","Text","Ja oder Nein",null,null,"Entrauchung"]
[null,null,"Aufzüge","Autolift","Lift Nr.","Zahl",21023850,null,null,"Fenster"]
[null,null,"Aufzüge","Autolift","Pikett-Tel.","Text","0 848 111 111",null,null,"Gase allgemein"]
[null,null,"Aufzüge","Autolift","Rufnummer SIM Karte","Text",760540956,null,null,"Geräte (Haushalt)"]
[null,null,"Aufzüge","Autolift","Standort Aufzug","Text","2OG / Maschinenraum",null,null,"Heizungsanlage"]
[null,null,"Aufzüge","Autolift","Stützbatteriesteuerung","Text","Ja oder Nein",null,null,"Innenbeleuchtung"]
[null,null,"Aufzüge","Autolift","Tel. Nr.","Zahl","4 44 44","BDI SC Nummer 4 44 44",null,"Kälte"]
[null,null,"Aufzüge","Autolift","Tel. Typ","Text","Exicall ",null,null,"Klimaanlagen"]
[null,null,"Aufzüge","Autolift","Verträge","Text","Ja oder Nein","Kann nicht durch die Planer abgefüllt werden",null,"Kraneinrichtungen"]
[null,null,"Aufzüge","Autolift","Notstrom","Text","Ja oder Nein",null,null,"Kücheneinrichtungen"]
[null,null,"Aufzüge","Baldachinaufzug","Anzahl Wartungen pro Jahr","Zahl",2,null,null,"Laboreinrichtung"]
[null,null,"Aufzüge","Baldachinaufzug","Antriebsart","Text","elektrisch",null,null,"Leitsystem"]
[null,null,"Aufzüge","Baldachinaufzug","BFST über BMA","Text","intern",null,null,"Löschanlagen"]
[null,null,"Aufzüge","Baldachinaufzug","E-Alarm /PSA (AlarmierungLeitsystem)","Text","Ja oder Nein",null,null,"Lüftungsanlagen"]
[null,null,"Aufzüge","Baldachinaufzug","Leitsys.typ.","Text","ZLS",null,null,"Meteostation"]
[null,null,"Aufzüge","Baldachinaufzug","Lift ausser Betrieb nehmen\nbei Netzwerkunterbruch\nzur Sicherheit","Text","Ja oder Nein",null,null,"Mittelspannungsanlagen (Trafostationen)"]
[null,null,"Aufzüge","Baldachinaufzug","Lift Nr.","Zahl",21023850,null,null,"Not- und Augenduschen"]
[null,null,"Aufzüge","Baldachinaufzug","Pikett-Tel.","Text","0 848 111 111",null,null,"Notbeleuchtung"]
[null,null,"Aufzüge","Baldachinaufzug","Rufnummer SIM Karte","Text",760540956,null,null,"Regenwasser"]
[null,null,"Aufzüge","Baldachinaufzug","Standort Aufzug","Text","2OG / Maschinenraum",null,null,"Sanitär"]
[null,null,"Aufzüge","Baldachinaufzug","Notstrom","Text","Ja oder Nein",null,null,"Schliessysteme"]
[null,null,"Aufzüge","Baldachinaufzug","Stützbatteriesteuerung","Text","Ja oder Nein",null,null,"Schwachstrominstallationen"]
[null,null,"Aufzüge","Baldachinaufzug","Tel. Nr.","Zahl","4 44 44","BDI SC Nummer 4 44 44",null,"Sicherheitsanlagen"]
[null,null,"Aufzüge","Baldachinaufzug","Tel. Typ","Text","Exicall ",null,null,"Starkstrominstallationen"]
[null,null,"Aufzüge","Baldachinaufzug","Verträge","Text","Ja oder Nein","Kann nicht durch die Planer abgefüllt werden",null,"Storen- / Beschattungsanlagen"]
[null,null,"Klimaanlagen","Befeuchtungsanlage von Split Klimaanlage","Beschrieb ","Text","Pflanzenkammer",null,null,"Türen, Tore und Abschlüsse "]
[null,null,"Klimaanlagen","Befeuchtungsanlage von Split Klimaanlage","Betriebszweck","Text","Lüftung",null,null,"Wärme"]
[null,null,"Klimaanlagen","Befeuchtungsanlage von Split Klimaanlage","Elektrische Leistung [kW]","Zahl",30,null,null,"Wasseraufbereitung"]
[null,null,"Klimaanlagen","Befeuchtungsanlage von Split Klimaanlage","Geräte Typ (Funktionsprinzip)","Text","Druckerhöhungsanlage",null,null,"Wasserverteilung"]
[null,null,"Klimaanlagen","Befeuchtungsanlage von Split Klimaanlage","Leistung Befeuchter in kW","Zahl",6]
[null,null,"Klimaanlagen","Befeuchtungsanlage von Split Klimaanlage","Wasser","Text","Osmose"]
[null,null,"Klimaanlagen","Befeuchtungsanlage von Split Klimaanlage","Wasseraufbereitung","Text","Ja oder Nein"]
[null,null,"Aufzüge","Behindertenlift","Anzahl Wartungen pro Jahr","Zahl",2]
[null,null,"Aufzüge","Behindertenlift","Antriebsart","Text","elektrisch"]
[null,null,"Aufzüge","Behindertenlift","BFST über BMA","Text","intern"]
[null,null,"Aufzüge","Behindertenlift","E-Alarm /PSA (AlarmierungLeitsystem)","Text","Ja oder Nein"]
[null,null,"Aufzüge","Behindertenlift","Leitsys.typ.","Text","ZLS"]
[null,null,"Aufzüge","Behindertenlift","Lift ausser Betrieb nehmen\nbei Netzwerkunterbruch\nzur Sicherheit","Text","Ja oder Nein"]
[null,null,"Aufzüge","Behindertenlift","Lift Nr.","Zahl",21023850]
[null,null,"Aufzüge","Behindertenlift","Pikett-Tel.","Text","0 848 111 111"]
[null,null,"Aufzüge","Behindertenlift","Notstrom","Text","Ja oder Nein"]
[null,null,"Aufzüge","Behindertenlift","Rufnummer SIM Karte","Text",760540956]
[null,null,"Aufzüge","Behindertenlift","Standort Aufzug","Text","2OG / Maschinenraum"]
[null,null,"Aufzüge","Behindertenlift","Stützbatteriesteuerung","Text","Ja oder Nein"]
[null,null,"Aufzüge","Behindertenlift","Tel. Nr.","Zahl","4 44 44","BDI SC Nummer 4 44 44"]
[null,null,"Aufzüge","Behindertenlift","Tel. Typ","Text","Exicall "]
[null,null,"Aufzüge","Behindertenlift","Verträge","Text","Ja oder Nein","Kann nicht durch die Planer abgefüllt werden"]
[null,null,"Brauchwarmwasser","Boiler mit Plattenwärmetauscher","Anzahl Wartungen pro Jahr Schutzanode","Zahl",1]
[null,null,"Brauchwarmwasser","Boiler mit Plattenwärmetauscher","Betriebstemperatur","Text","50°"]
[null,null,"Brauchwarmwasser","Boiler mit Plattenwärmetauscher","Ladung","Text","Fernwärme"]
[null,null,"Brauchwarmwasser","Boiler mit Plattenwärmetauscher","Legionellenschaltung","Text","Ja oder Nein"]
[null,null,"Brauchwarmwasser","Boiler mit Plattenwärmetauscher","Registerart","Text","Innenliegend"]
[null,null,"Brauchwarmwasser","Boiler mit Plattenwärmetauscher","Tarifsperre","Text","Ja oder Nein"]
[null,null,"Brauchwarmwasser","Boiler mit Plattenwärmetauscher","Volumen [Liter]","Zahl",300]
[null,null,"Brandschutz","Brandschutzklappe (BSK)","Anzahl Wartungen pro Jahr","Zahl",2]
[null,null,"Brandschutz","Brandschutzklappe (BSK)","Apparatekennzeichnung Signaltext Leitsystem","Text",null,"Kann nicht durch Planer ausgefüllt werden"]
[null,null,"Brandschutz","Brandschutzklappe (BSK)","Bemerkung Standort","Text","In Holdecke"]
[null,null,"Brandschutz","Brandschutzklappe (BSK)","Bezeichnung Schaltschrank","Text","SOC-L970-U08"]
[null,null,"Brandschutz","Brandschutzklappe (BSK)","BSK Antrieb","Text","Schako BFG24-T SO"]
[null,null,"Brandschutz","Brandschutzklappe (BSK)","Hersteller/ Antrieb BSK","Text","ESCO 30x30"]
[null,null,"Brandschutz","Brandschutzklappe (BSK)","Hersteller/ Typ BSK","Text","Belimo BFG 24_T_ST"]
[null,null,"Brandschutz","Brandschutzklappe (BSK)","Installationshöhe","Text","3m"]
[null,null,"Brandschutz","Brandschutzklappe (BSK)","MSR Schlüssel Leitsystem","Text","AFL_US11_L002_U003bY11.StoeZu.Zustand.Meldung","Kann nicht durch Planer ausgefüllt werden"]
[null,null,"Brandschutz","Brandschutzklappe (BSK)","Bemerkung","Text"]
[null,null,"Brandschutz","Brandschutzklappe (BSK)","Testart ","Text"," Leitsystem oder Lokal","Kann nicht durch Planer ausgefüllt werden"]
[null,null,"Brauchwarmwasser","Brauchwarmwasserboiler","Anzahl Wartungen pro Jahr Schutzanode","Zahl",1]
[null,null,"Brauchwarmwasser","Brauchwarmwasserboiler","Betriebstemperatur","Text","50°"]
[null,null,"Brauchwarmwasser","Brauchwarmwasserboiler","Ladung","Text","Fernwärme"]
[null,null,"Brauchwarmwasser","Brauchwarmwasserboiler","Legionellenschaltung","Text","Ja oder Nein"]
[null,null,"Brauchwarmwasser","Brauchwarmwasserboiler","Registerart","Text","Innenliegend"]
[null,null,"Brauchwarmwasser","Brauchwarmwasserboiler","Tarifsperre","Text","Ja oder Nein"]
[null,null,"Brauchwarmwasser","Brauchwarmwasserboiler","Volumen [Liter]","Zahl",300]
[null,null,"Wasserverteilung","Brunnenanlagen","Abstellventil","Text","im Schacht"]
[null,null,"Wasserverteilung","Brunnenanlagen","Aussenventil","Text","in Waschküche"]
[null,null,"Wasserverteilung","Brunnenanlagen","Bemerkung Standort","Text","In Holdecke"]
[null,null,"Wasserverteilung","Brunnenanlagen","Entleerung","Text","wird durch IH gereinigt","Kann nicht durch Planer ausgefüllt werden"]
[null,null,"Wasserverteilung","Brunnenanlagen","Frostsicher ","Text","Ja oder Nein"]
[null,null,"Wasserverteilung","Brunnenanlagen","Wasseraufbereitung","Text","Ja oder Nein"]
[null,null,"Wasserverteilung","Brunnenanlagen","Zuständigkeit","Text","BDZ","Kann nicht durch Planer ausgefüllt werden"]
[null,null,"Aufzüge","Bücherlift","Anzahl Wartungen pro Jahr","Zahl",2]
[null,null,"Aufzüge","Bücherlift","Antriebsart","Text","elektrisch"]
[null,null,"Aufzüge","Bücherlift","BFST über BMA","Text","intern"]
[null,null,"Aufzüge","Bücherlift","E-Alarm /PSA (AlarmierungLeitsystem)","Text","Ja oder Nein"]
[null,null,"Aufzüge","Bücherlift","Leitsys.typ.","Text","ZLS"]
[null,null,"Aufzüge","Bücherlift","Lift ausser Betrieb nehmen\nbei Netzwerkunterbruch\nzur Sicherheit","Text","Ja oder Nein"]
[null,null,"Aufzüge","Bücherlift","Lift Nr.","Zahl",21023850]
[null,null,"Aufzüge","Bücherlift","Notstrom","Text","Ja oder Nein"]
[null,null,"Aufzüge","Bücherlift","Pikett-Tel.","Text","0 848 111 111"]
[null,null,"Aufzüge","Bücherlift","Rufnummer SIM Karte","Text",760540956]
[null,null,"Aufzüge","Bücherlift","Standort Aufzug","Text","2OG / Maschinenraum"]
[null,null,"Aufzüge","Bücherlift","Stützbatteriesteuerung","Text","Ja oder Nein"]
[null,null,"Aufzüge","Bücherlift","Tel. Nr.","Zahl","4 44 44","BDI SC Nummer 4 44 44"]
[null,null,"Aufzüge","Bücherlift","Tel. Typ","Text","Exicall "]
[null,null,"Aufzüge","Bücherlift","Verträge","Text","Ja oder Nein","Kann nicht durch die Planer abgefülltwerden"]
[null,null,"Druckgeräte","Druckluftanlage","KIS-PV Nr.","Zahl",1325237]
[null,null,"Druckgeräte","Druckluftanlage","Druck [Bar]","Zahl",3.7]
[null,null,"Druckgeräte","Druckluftanlage","Prüfpflicht ","Text","Ja oder Nein"]
[null,null,"Druckgeräte","Druckluftanlage","Volumen [Liter]","Zahl",300]
[null,null,"Druckgeräte","Druckluftanlage","Medium","Text","Luft"]
[null,null,"Druckgeräte","Druckluftanlage","Nachspeisung Automatisch","Text","Ja oder Nein"]
[null,null,"Druckgeräte","Druckluftanlage","Anzahl Wartungen pro Jahr","Zahl",2]
[null,null,"Kücheneinrichtungen","Eismaschine","Bemerkung zur Reinigung","Text","Geeignet für Lebensmittel"]
[null,null,"Kücheneinrichtungen","Eismaschine","Elektrische Leistung [kW]","Zahl",30]
[null,null,"Kücheneinrichtungen","Eismaschine","Kältemittel/ Kältemittelmenge","Text","Wasser 3L"]
[null,null,"Kücheneinrichtungen","Eismaschine","Kältemitteltyp ","Text","R-410"]
[null,null,"Kücheneinrichtungen","Eismaschine","Meldekarte (Vignette)","Zahl","Ja oder Nein, 16-Stellige Zahl"]
[null,null,"Kücheneinrichtungen","Eismaschine","Rückkühler und Typ","Text","Ja oder Nein, Trockenrückkühler"]
[null,null,"Kücheneinrichtungen","Eismaschine","Standort Rückkühler","Text","E-44"]
[null,null,"Kücheneinrichtungen","Eismaschine","Tarifsperre","Text","Ja oder Nein"]
[null,null,"Kücheneinrichtungen","Eismaschine","Zuständigkeit","Text","BDZ"]
[null,null,"Klimaanlagen","Entfeuchungsanlage von Split Klimaanlage","Elektrische Leistung [kW]","Zahl",30]
[null,null,"Klimaanlagen","Entfeuchungsanlage von Split Klimaanlage","Filtertyp und Masse","Text","30x30"]
[null,null,"Klimaanlagen","Entfeuchungsanlage von Split Klimaanlage","Hygrostat Intern/ Extern","Text","Intern"]
[null,null,"Klimaanlagen","Entfeuchungsanlage von Split Klimaanlage","Kälteleistung [kW]","Zahl",200]
[null,null,"Klimaanlagen","Entfeuchungsanlage von Split Klimaanlage","Kältemittel/ Kältemittelmenge","Text","Wasser 3L"]
[null,null,"Klimaanlagen","Entfeuchungsanlage von Split Klimaanlage","Meldekarte (Vignette)","Zahl","Ja oder Nein, 16-Stellige Zahl"]
[null,null,"Klimaanlagen","Entfeuchungsanlage von Split Klimaanlage","Rückkühler und Typ","Text","Ja oder Nein, Trockenrückkühler"]
[null,null,"Klimaanlagen","Entfeuchungsanlage von Split Klimaanlage","Standort Rückkühler","Text","E-44"]
[null,null,"Wasseraufbereitung","Enthärtungsanlage","Geräte Typ (Funktionsprinzip)","Text","Druckerhöhungsanlage"]
[null,null,"Wasseraufbereitung","Enthärtungsanlage","Inbetriebsetzung","Datum","2022-04-03"]
[null,null,"Wasseraufbereitung","Enthärtungsanlage","Salz auffüllen","Text","TD BOT","Kann nicht durch Planer ausgefüllt werden"]
[null,null,"Wasseraufbereitung","Enthärtungsanlage","Salzbehälter","Text","75 kg"]
[null,null,"Wasseraufbereitung","Enthärtungsanlage","Vertrags Nr.\nBWT","Zahl",942824,"Kann nicht durch Planer ausgefüllt werden"]
[null,null,"Wasseraufbereitung","Enthärtungsanlage","Vertragscode\nUZH","Text","V_0000899","Kann nicht durch Planer ausgefüllt werden"]
[null,null,"Laboreinrichtung","Erdgas- Bunsenbrenner","Brenner mit\nSicherheit (Überwachung)","Text","1x"]
[null,null,"Laboreinrichtung","Erdgas- Bunsenbrenner","Elektro-/  Gas Abschaltung","Zahl",1]
[null,null,"Laboreinrichtung","Erdgas- Bunsenbrenner","Gasanschlüsse Armaturen (Anzahl Gasanschlüsse nach Raum)","Zahl",7]
[null,null,"Laboreinrichtung","Erdgas- Bunsenbrenner","Gas 48 Volt\nMagnetventiel(Typ Magnetventil)","Zahl",2]
[null,null,"Laboreinrichtung","Erdgas- Bunsenbrenner","Gas überwachung Raum","Text","Ja oder Nein"]
[null,null,"Laboreinrichtung","Erdgas- Bunsenbrenner","Gasrückflamm- sicherung","Zahl ",2]
[null,null,"Laboreinrichtung","Erdgas- Bunsenbrenner","Gasschlauch\nersetzt","Text","Neu"]
[null,null,"Laboreinrichtung","Erdgas- Bunsenbrenner","Standort Abstellhahn","Text","2OG / Maschinenraum"]
[null,null,"Laboreinrichtung","Erdgas- Bunsenbrenner","Anzahl Wartungen pro Jahr","Zahl",2]
[null,null,"Druckgeräte","Expansionsgefäss","Betriebsdruck [Bar]","Zahl",3.7]
[null,null,"Druckgeräte","Expansionsgefäss","Füllmenge [%]","Zahl",41]
[null,null,"Druckgeräte","Expansionsgefäss","Hauptanlage","Text","Öl Heizung"]
[null,null,"Druckgeräte","Expansionsgefäss","Medium","Text","Luft"]
[null,null,"Druckgeräte","Expansionsgefäss","Nachspeisung Automatisch","Text","Ja oder Nein"]
[null,null,"Druckgeräte","Expansionsgefäss","Prüfpflicht ","Text","Ja oder Nein"]
[null,null,"Druckgeräte","Expansionsgefäss","Volumen [Liter]","Zahl",300]
[null,null,"Druckgeräte","Expansionsgefäss","Anzahl Wartungen pro Jahr","Zahl",2]
[null,null,"Abwasser","Fäkalienpumpe","Anzahl Wartungen pro Jahr","Zahl",2]
[null,null,"Abwasser","Fäkalienpumpe","Alarmierung Leitsystem","Text","Ja oder Nein"]
[null,null,"Abwasser","Fäkalienpumpe","Anwendung","Text","Fäkalien"]
[null,null,"Abwasser","Fäkalienpumpe","Steuerung","Text","NA-25-104"]
[null,null,"Kücheneinrichtungen","Fritteuse","Elektrische Leistung [kW]","Zahl",30]
[null,null,"Kücheneinrichtungen","Fritteuse","Tarifsperre","Text","Ja oder Nein"]
[null,null,"Kücheneinrichtungen","Fritteuse","Zuständigkeit","Text","BDZ","Kann nicht durch Planer ausgefüllt werden"]
[null,null,"Kücheneinrichtungen","Fritteuse","Bemerkung zur Reinigung","Text","Geeignet für Lebensmittel"]
[null,null,"Gase allgemein","Gaswarnanlage","Medium","Text","Amoniak (NH3)"]
[null,null,"Kücheneinrichtungen","Geschirrspüler","Elektrische Leistung [kW]","Zahl",30]
[null,null,"Kücheneinrichtungen","Geschirrspüler","Tarifsperre","Text","Ja oder Nein","Kann nicht durch Planer ausgefüllt werden"]
[null,null,"Kücheneinrichtungen","Geschirrspüler","Zuständigkeit","Text","BDZ","Kann nicht durch Planer ausgefüllt werden"]
[null,null,"Abwasser","Grundwasserpumpe","Anzahl Wartungen pro Jahr","Zahl",2]
[null,null,"Abwasser","Grundwasserpumpe","Alarmierung Leitsystem","Text","Ja oder Nein"]
[null,null,"Abwasser","Grundwasserpumpe","Anwendung","Text","Fäkalien"]
[null,null,"Abwasser","Grundwasserpumpe","Steuerung","Text","NA-25-104"]
[null,null,"Wasseraufbereitung","Grundwasserpumpe","Anzahl Wartungen pro Jahr","Zahl",2]
[null,null,"Wasseraufbereitung","Grundwasserpumpe","Alarmierung Leitsystem","Text","Ja oder Nein","Kann nicht durch Planer ausgefüllt werden"]
[null,null,"Wasseraufbereitung","Grundwasserpumpe","Anwendung","Text","Frischwasser"]
[null,null,"Wasseraufbereitung","Grundwasserpumpe","Steuerung","Text","NA-25-104"]
[null,null,"Aufzüge","Hebebühne","Anzahl Wartungen pro Jahr","Zahl",2]
[null,null,"Aufzüge","Hebebühne","Antriebsart","Text","elektrisch"]
[null,null,"Aufzüge","Hebebühne","BFST über BMA","Text","intern"]
[null,null,"Aufzüge","Hebebühne","E-Alarm /PSA (AlarmierungLeitsystem)","Text","Ja oder Nein"]
[null,null,"Aufzüge","Hebebühne","Leitsys.typ.","Text","ZLS"]
[null,null,"Aufzüge","Hebebühne","Lift ausser Betrieb nehmen\nbei Netzwerkunterbruch\nzur Sicherheit","Text","Ja oder Nein"]
[null,null,"Aufzüge","Hebebühne","Lift Nr.","Zahl",21023850]
[null,null,"Aufzüge","Hebebühne","Pikett-Tel.","Text","0 848 111 111"]
[null,null,"Aufzüge","Hebebühne","Rufnummer SIM Karte","Text",760540956]
[null,null,"Aufzüge","Hebebühne","Standort Aufzug","Text","2OG / Maschinenraum"]
[null,null,"Aufzüge","Hebebühne","Notstrom","Text","Ja oder Nein"]
[null,null,"Aufzüge","Hebebühne","Stützbatteriesteuerung","Text","Ja oder Nein"]
[null,null,"Aufzüge","Hebebühne","Tel. Nr.","Zahl","4 44 44","BDI SC Nummer 4 44 44"]
[null,null,"Aufzüge","Hebebühne","Tel. Typ","Text","Exicall "]
[null,null,"Aufzüge","Hebebühne","Verträge","Text","Ja oder Nein","Kann nicht durch die Planer abgefülltwerden"]
[null,null,"Heizungsanlage","Öl Tank","Öl Tank Revision alle (in Jahren)","Zahl",10]
[null,null,"Heizungsanlage","Öl Tank","Öl Tank Prüfung alle (in Jahren)","Zahl",2]
[null,null,"Heizungsanlage","Heizungsanlage","Nennwärme- leistung [kW]","Zahl",360]
[null,null,"Heizungsanlage","Heizungsanlage","Anzahl Wartungen pro Jahr Schlammabscheider","Zahl",1]
[null,null,"Heizungsanlage","Heizungsanlage","Elektrische Leistung [kW]","Zahl",30]
[null,null,"Heizungsanlage","Heizungsanlage","Feuerungsart","Text","Gebläsefeuerung"]
[null,null,"Heizungsanlage","Heizungsanlage","Feuerungskontrolle Stadt Zürich (Pflicht/optional)","Text","Pflicht"]
[null,null,"Heizungsanlage","Heizungsanlage","Kondensierend "]
[null,null,"Heizungsanlage","Heizungsanlage","Max. Betriebs- druck [Bar]","Zahl",4]
[null,null,"Heizungsanlage","Heizungsanlage","Max. Betriebs- temperatur [°C]","Zahl",95]
[null,null,"Heizungsanlage","Heizungsanlage","Medium","Text","Luft"]
[null,null,"Abwasser","Invaliden WC / Closomat","Anzahl Wartungen pro Jahr","Zahl",2]
[null,null,"Aufzüge","Invalidenlift","Anzahl Wartungen pro Jahr","Zahl",2]
[null,null,"Aufzüge","Invalidenlift","Antriebsart","Text","elektrisch"]
[null,null,"Aufzüge","Invalidenlift","BFST über BMA","Text","intern"]
[null,null,"Aufzüge","Invalidenlift","E-Alarm /PSA (AlarmierungLeitsystem)","Text","Ja oder Nein"]
[null,null,"Aufzüge","Invalidenlift","Leitsys.typ.","Text","ZLS"]
[null,null,"Aufzüge","Invalidenlift","Lift ausser Betrieb nehmen\nbei Netzwerkunterbruch\nzur Sicherheit","Text","Ja oder Nein"]
[null,null,"Aufzüge","Invalidenlift","Lift Nr.","Zahl",21023850]
[null,null,"Aufzüge","Invalidenlift","Pikett-Tel.","Text","0 848 111 111"]
[null,null,"Aufzüge","Invalidenlift","Rufnummer SIM Karte","Text",760540956]
[null,null,"Aufzüge","Invalidenlift","Standort Aufzug","Text","2OG / Maschinenraum"]
[null,null,"Aufzüge","Invalidenlift","Stützbatteriesteuerung","Text","Ja oder Nein"]
[null,null,"Aufzüge","Invalidenlift","Tel. Nr.","Zahl","4 44 44","BDI SC Nummer 4 44 44"]
[null,null,"Aufzüge","Invalidenlift","Notstrom","Text","Ja oder Nein"]
[null,null,"Aufzüge","Invalidenlift","Tel. Typ","Text","Exicall "]
[null,null,"Aufzüge","Invalidenlift","Verträge","Text","Ja oder Nein","Kann nicht durch die Planer abgefülltwerden"]
[null,null,"Aufzüge","Kleinwarenaufzug","Anzahl Wartungen pro Jahr","Zahl",2]
[null,null,"Aufzüge","Kleinwarenaufzug","Antriebsart","Text","elektrisch"]
[null,null,"Aufzüge","Kleinwarenaufzug","BFST über BMA","Text","intern"]
[null,null,"Aufzüge","Kleinwarenaufzug","E-Alarm /PSA (AlarmierungLeitsystem)","Text","Ja oder Nein"]
[null,null,"Aufzüge","Kleinwarenaufzug","Leitsys.typ.","Text","ZLS"]
[null,null,"Aufzüge","Kleinwarenaufzug","Notstrom","Text","Ja oder Nein"]
[null,null,"Aufzüge","Kleinwarenaufzug","Lift ausser Betrieb nehmen\nbei Netzwerkunterbruch\nzur Sicherheit","Text","Ja oder Nein"]
[null,null,"Aufzüge","Kleinwarenaufzug","Lift Nr.","Zahl",21023850]
[null,null,"Aufzüge","Kleinwarenaufzug","Pikett-Tel.","Text","0 848 111 111"]
[null,null,"Aufzüge","Kleinwarenaufzug","Rufnummer SIM Karte","Text",760540956]
[null,null,"Aufzüge","Kleinwarenaufzug","Standort Aufzug","Text","2OG / Maschinenraum"]
[null,null,"Aufzüge","Kleinwarenaufzug","Stützbatteriesteuerung","Text","Ja oder Nein"]
[null,null,"Aufzüge","Kleinwarenaufzug","Tel. Nr.","Zahl","4 44 44","BDI SC Nummer 4 44 44"]
[null,null,"Aufzüge","Kleinwarenaufzug","Tel. Typ","Text","Exicall "]
[null,null,"Aufzüge","Kleinwarenaufzug","Verträge","Text","Ja oder Nein","Kann nicht durch die Planer abgefülltwerden"]
[null,null,"Not- und Augenduschen","Notdusche","Anzahl Anlagen","Zahl",13]
[null,null,"Not- und Augenduschen","Notdusche","Bemerkung Standort","Text","In Holdecke"]
[null,null,"Wasseraufbereitung","Osmoseanlage","Geräte Typ (Funktionsprinzip)","Text","Druckerhöhungsanlage"]
[null,null,"Wasseraufbereitung","Osmoseanlage","Inbetriebsetzung","Datum","2022-04-03"]
[null,null,"Wasseraufbereitung","Osmoseanlage","Salz auffüllen","Text","TD BOT"]
[null,null,"Wasseraufbereitung","Osmoseanlage","Salzbehälter","Text","75 kg"]
[null,null,"Wasseraufbereitung","Osmoseanlage","Vertrags Nr.\nBWT","Zahl",942824]
[null,null,"Wasseraufbereitung","Osmoseanlage","Vertragscode\nUZH","Text","V_0000899","Kann nicht durch Planer ausgefüllt werden"]
[null,null,"Aufzüge","Personenlift","Anzahl Wartungen pro Jahr","Zahl",2]
[null,null,"Aufzüge","Personenlift","Antriebsart","Text","elektrisch"]
[null,null,"Aufzüge","Personenlift","BFST über BMA","Text","intern"]
[null,null,"Aufzüge","Personenlift","E-Alarm /PSA (AlarmierungLeitsystem)","Text","Ja oder Nein"]
[null,null,"Aufzüge","Personenlift","Notstrom","Text","Ja oder Nein"]
[null,null,"Aufzüge","Personenlift","Leitsys.typ.","Text","ZLS"]
[null,null,"Aufzüge","Personenlift","Lift ausser Betrieb nehmen\nbei Netzwerkunterbruch\nzur Sicherheit","Text","Ja oder Nein"]
[null,null,"Aufzüge","Personenlift","Lift Nr.","Zahl",21023850]
[null,null,"Aufzüge","Personenlift","Pikett-Tel.","Text","0 848 111 111"]
[null,null,"Aufzüge","Personenlift","Rufnummer SIM Karte","Text",760540956]
[null,null,"Aufzüge","Personenlift","Standort Aufzug","Text","2OG / Maschinenraum"]
[null,null,"Aufzüge","Personenlift","Stützbatteriesteuerung","Text","Ja oder Nein"]
[null,null,"Aufzüge","Personenlift","Tel. Nr.","Zahl","4 44 44","BDI SC Nummer 4 44 44"]
[null,null,"Aufzüge","Personenlift","Tel. Typ","Text","Exicall "]
[null,null,"Aufzüge","Personenlift","Verträge","Text","Ja oder Nein","Kann nicht durch die Planer abgefülltwerden"]
[null,null,"Aufzüge","Plattformlift","Anzahl Wartungen pro Jahr","Zahl",2]
[null,null,"Aufzüge","Plattformlift","Antriebsart","Text","elektrisch"]
[null,null,"Aufzüge","Plattformlift","BFST über BMA","Text","intern"]
[null,null,"Aufzüge","Plattformlift","E-Alarm /PSA (AlarmierungLeitsystem)","Text","Ja oder Nein"]
[null,null,"Aufzüge","Plattformlift","Leitsys.typ.","Text","ZLS"]
[null,null,"Aufzüge","Plattformlift","Lift ausser Betrieb nehmen\nbei Netzwerkunterbruch\nzur Sicherheit","Text","Ja oder Nein"]
[null,null,"Aufzüge","Plattformlift","Notstrom","Text","Ja oder Nein"]
[null,null,"Aufzüge","Plattformlift","Lift Nr.","Zahl",21023850]
[null,null,"Aufzüge","Plattformlift","Pikett-Tel.","Text","0 848 111 111"]
[null,null,"Aufzüge","Plattformlift","Rufnummer SIM Karte","Text",760540956]
[null,null,"Aufzüge","Plattformlift","Standort Aufzug","Text","2OG / Maschinenraum"]
[null,null,"Aufzüge","Plattformlift","Stützbatteriesteuerung","Text","Ja oder Nein"]
[null,null,"Aufzüge","Plattformlift","Tel. Nr.","Zahl","4 44 44","BDI SC Nummer 4 44 44"]
[null,null,"Aufzüge","Plattformlift","Tel. Typ","Text","Exicall "]
[null,null,"Aufzüge","Plattformlift","Verträge","Text","Ja oder Nein","Kann nicht durch die Planer abgefülltwerden"]
[null,null,"Regenwasser","Regenwassernutzungsanlage","Nachfilter reinigen","Text","Jährlich"]
[null,null,"Regenwasser","Regenwassernutzungsanlage","Schlambehälter","Text","alle 6 Monate, 2 Stk."]
[null,null,"Regenwasser","Regenwassernutzungsanlage","Standort Sammelfläche","Text","Dach"]
[null,null,"Regenwasser","Regenwassernutzungsanlage","Tiefenfilterkerzen\nersetzen\n","Text","alle Jahre"]
[null,null,"Regenwasser","Regenwassernutzungsanlage","Volumen [m³]","Zahl",75]
[null,null,"Regenwasser","Regenwassernutzungsanlage","Zusätzliche Angaben","Text","Div."]
[null,null,"Druckgeräte","Reinluftdruckanlage","KIS-PV Nr.","Zahl",1325237]
[null,null,"Druckgeräte","Reinluftdruckanlage","Druck [Bar]","Zahl",3.7]
[null,null,"Druckgeräte","Reinluftdruckanlage","Prüfpflicht ","Text","Ja oder Nein"]
[null,null,"Druckgeräte","Reinluftdruckanlage","Volumen [Liter]","Zahl",300]
[null,null,"Druckgeräte","Reinluftdruckanlage","Medium","Text","Luft"]
[null,null,"Druckgeräte","Reinluftdruckanlage","Nachspeisung Automatisch","Text","Ja oder Nein"]
[null,null,"Druckgeräte","Reinluftdruckanlage","Anzahl Wartungen pro Jahr","Zahl",2]
[null,null,"Klimaanlagen & Lüftungsanlage","Split Klimaanlage & Lüftungsanlage","Anlageluftart","Text","Zuluft/Fortluft/Umluft"]
[null,null,"Klimaanlagen & Lüftungsanlage","Split Klimaanlage & Lüftungsanlage","Anlage/Anlagekennzeichnung Leitsystem","Text","L0020"]
[null,null,"Klimaanlagen & Lüftungsanlage","Split Klimaanlage & Lüftungsanlage","Anzahl Anlagen","Zahl",13]
[null,null,"Klimaanlagen & Lüftungsanlage","Split Klimaanlage & Lüftungsanlage","Anzahl Maximale Taschenlänge","Zahl",370]
[null,null,"Klimaanlagen & Lüftungsanlage","Split Klimaanlage & Lüftungsanlage","AnzahlKeilriemen","Zahl",20]
[null,null,"Klimaanlagen & Lüftungsanlage","Split Klimaanlage & Lüftungsanlage","Aussenluft & Fortluft = getrennt, Separat erfassen","Zahl"]
[null,null,"Klimaanlagen & Lüftungsanlage","Split Klimaanlage & Lüftungsanlage","Aussenluft & Fortluft getrennt?","Text","Ja oder Nein"]
[null,null,"Klimaanlagen & Lüftungsanlage","Split Klimaanlage & Lüftungsanlage","Beschreibung Filter","Text","Zellenfilter/Waschbar/HEPA/Kassettenfilter"]
[null,null,"Klimaanlagen & Lüftungsanlage","Split Klimaanlage & Lüftungsanlage","Bezeichnung Schaltschrank","Text","SOC-L970-U08"]
[null,null,"Klimaanlagen & Lüftungsanlage","Split Klimaanlage & Lüftungsanlage","Filterhersteller","Text","Unifill","Kann nicht durch die Planer abgefülltwerden"]
[null,null,"Klimaanlagen & Lüftungsanlage","Split Klimaanlage & Lüftungsanlage","Filterqualität und Abmessung und Energieklasse","Text","ISO Coarse 50% (G3)/200x200x12 (Energieklasse C)"]
[null,null,"Klimaanlagen & Lüftungsanlage","Split Klimaanlage & Lüftungsanlage","Kennzeichnung Filter","Text","MZ3-200-200-12-t15/150"]
[null,null,"Klimaanlagen & Lüftungsanlage","Split Klimaanlage & Lüftungsanlage","Kühlmedium","Text","Wasser"]
[null,null,"Klimaanlagen & Lüftungsanlage","Split Klimaanlage & Lüftungsanlage","WRG Art","Text","KVS/PWT"]
[null,null,"Aufzüge","Treppenlift","Anzahl Wartungen pro Jahr","Zahl",2]
[null,null,"Aufzüge","Treppenlift","Antriebsart","Text","elektrisch"]
[null,null,"Aufzüge","Treppenlift","BFST über BMA","Text","intern"]
[null,null,"Aufzüge","Treppenlift","E-Alarm /PSA (AlarmierungLeitsystem)","Text","Ja oder Nein"]
[null,null,"Aufzüge","Treppenlift","Leitsys.typ.","Text","ZLS"]
[null,null,"Aufzüge","Treppenlift","Lift ausser Betrieb nehmen\nbei Netzwerkunterbruch\nzur Sicherheit","Text","Ja oder Nein"]
[null,null,"Aufzüge","Treppenlift","Lift Nr.","Zahl",21023850]
[null,null,"Aufzüge","Treppenlift","Pikett-Tel.","Text","0 848 111 111"]
[null,null,"Aufzüge","Treppenlift","Rufnummer SIM Karte","Text",760540956]
[null,null,"Aufzüge","Treppenlift","Notstrom","Text","Ja oder Nein"]
[null,null,"Aufzüge","Treppenlift","Standort Aufzug","Text","2OG / Maschinenraum"]
[null,null,"Aufzüge","Treppenlift","Stützbatteriesteuerung","Text","Ja oder Nein"]
[null,null,"Aufzüge","Treppenlift","Tel. Nr.","Zahl","4 44 44","BDI SC Nummer 4 44 44"]
[null,null,"Aufzüge","Treppenlift","Tel. Typ","Text","Exicall "]
[null,null,"Aufzüge","Treppenlift","Verträge","Text","Ja oder Nein","Kann nicht durch die Planer abgefülltwerden"]
[null,null,"Wasserverteilung","Trinkwasserbrunnen","Frostsicher ","Text","Ja oder Nein"]
[null,null,"Wasserverteilung","Trinkwasserbrunnen","Standort Abstellhahn","Text","2OG / Maschinenraum"]
[null,null,"Wasserverteilung","Trinkwasser-Systemtrenngeräte","Grösse","Zahl","1 1/2 Zoll"]
[null,null,"Wasserverteilung","Trinkwasser-Systemtrenngeräte","Vertragscode\nUZH","Text","V_0000899","Kann nicht durch Planer ausgefüllt werden"]
[null,null,"Geräte (Haushalt)","Tumbler","Ablufthaube ","Text","Ja oder Nein"]
[null,null,"Geräte (Haushalt)","Tumbler","Elektrische Leistung [kW]","Zahl",30]
[null,null,"Geräte (Haushalt)","Tumbler","Wäsche in [Kg]","Text",5]
[null,null,"Geräte (Haushalt)","Tumbler","Anzahl Wartungen pro Jahr","Zahl",2]
[null,null,"Klimaanlagen","Umluftkühlgeräte von Split Klimaanlage","Abführung Kondenswasser","Text","Ablauf, Pumpe"]
[null,null,"Klimaanlagen","Umluftkühlgeräte von Split Klimaanlage","Beschreibung Installationsraum","Text","Wandgerät, Serverraum"]
[null,null,"Klimaanlagen","Umluftkühlgeräte von Split Klimaanlage","Durchflussmenge Kühlmedium","Text","5l / min"]
[null,null,"Klimaanlagen","Umluftkühlgeräte von Split Klimaanlage","Elektrische Leistung [kW]","Zahl",30]
[null,null,"Klimaanlagen","Umluftkühlgeräte von Split Klimaanlage","Filtertyp und Masse","Text","30x30"]
[null,null,"Klimaanlagen","Umluftkühlgeräte von Split Klimaanlage","Kältekategorie","Text","Industrie/ Gewerbe/ Komfort"]
[null,null,"Klimaanlagen","Umluftkühlgeräte von Split Klimaanlage","Kälteleistung in [kW]","Zahl",200]
[null,null,"Klimaanlagen","Umluftkühlgeräte von Split Klimaanlage","Modell/ Typ Ventilator","Text","Querstromlüfter 600mm"]
[null,null,"Klimaanlagen","Umluftkühlgeräte von Split Klimaanlage","Regulierung","Text","Beschreibung Regulierung: Leitsystem extern / Display, Thermostat"]
[null,null,"Klimaanlagen","Umluftkühlgeräte von Split Klimaanlage","Standort Erzeuger","Text","E-44"]
[null,null,"Klimaanlagen","Umluftkühlgeräte von Split Klimaanlage","Systemtemperatur VL/RL","Text","12/16 Grad Celsius"]
[null,null,"Aufzüge","Warenlift","Anzahl Wartungen pro Jahr","Zahl",2]
[null,null,"Aufzüge","Warenlift","Antriebsart","Text","elektrisch"]
[null,null,"Aufzüge","Warenlift","BFST über BMA","Text","intern"]
[null,null,"Aufzüge","Warenlift","E-Alarm /PSA (AlarmierungLeitsystem)","Text","Ja oder Nein"]
[null,null,"Aufzüge","Warenlift","Leitsys.typ.","Text","ZLS"]
[null,null,"Aufzüge","Warenlift","Lift ausser Betrieb nehmen\nbei Netzwerkunterbruch\nzur Sicherheit","Text","Ja oder Nein"]
[null,null,"Aufzüge","Warenlift","Lift Nr.","Zahl",21023850]
[null,null,"Aufzüge","Warenlift","Pikett-Tel.","Text","0 848 111 111"]
[null,null,"Aufzüge","Warenlift","Rufnummer SIM Karte","Text",760540956]
[null,null,"Aufzüge","Warenlift","Standort Aufzug","Text","2OG / Maschinenraum"]
[null,null,"Aufzüge","Warenlift","Notstrom","Text","Ja oder Nein"]
[null,null,"Aufzüge","Warenlift","Stützbatteriesteuerung","Text","Ja oder Nein"]
[null,null,"Aufzüge","Warenlift","Tel. Nr.","Zahl","4 44 44","BDI SC Nummer 4 44 44"]
[null,null,"Aufzüge","Warenlift","Tel. Typ","Text","Exicall "]
[null,null,"Aufzüge","Warenlift","Verträge","Text","Ja oder Nein","Kann nicht durch die Planer abgefülltwerden"]
[null,null,"Wasserverteilung","Warmwasserleitung","Betriebsstunden/Tag","Zahl",5,"Kann nicht durch Planer ausgefüllt werden"]
[null,null,"Wasserverteilung","Warmwasserleitung","Grösse","Zahl","1 1/2 Zoll"]
[null,null,"Wasserverteilung","Warmwasserleitung","Pumpen-Typ","Text","Magna3 25-60"]
[null,null,"Wasserverteilung","Warmwasserleitung","Temperaturüberwachung vl/rl","Text","Ja oder Nein"]
[null,null,"Geräte (Haushalt)","Waschmaschine","Ablufthaube ","Text","Ja oder Nein"]
[null,null,"Geräte (Haushalt)","Waschmaschine","Elektrische Leistung [kW]","Zahl",30]
[null,null,"Geräte (Haushalt)","Waschmaschine","Wäsche in [Kg]","Text",5]
[null,null,"Geräte (Haushalt)","Waschmaschine","Anzahl Wartungen pro Jahr","Zahl",2]
[null,null,"Wasseraufbereitung","Wasserfilter","Automatische Spülung","Text","Ja oder Nein"]
[null,null,"Wasseraufbereitung","Wasserfilter","Mass","Zahl","1 1/2 Zoll / DIN"]
[null,null,"Wasseraufbereitung","Wasserfilter","Zusätzliche Angaben","Text","Div."]
[null,null,"Löschanlagen","Wasserlöschposten","Bemerkung Standort","Text","In Holdecke"]
[null,null,"Abwasser","Invaliden WC / Closomat","Gesamt","Zahl",13]
[null,null,"Abwasser","Wasserlose Urinale","Anzahl Wartungen pro Jahr","Zahl",2]
[null,null,"Abwasser","Neutralisation","Föhnheizung","Zahl",2]
[null,null,"Abwasser","Neutralisation","Wasserdüse","Text","Ja oder Nein"]
[null,null,"Brandmeldeanlagen","Brandmeldeanlage (BMA)","Alarm Net. Nr.","Zahl",921173]
[null,null,"Wasserverteilung","Aussenwasserhahn","Standort","Text","Garage"]
[null,null,"Wasserverteilung","Aussenwasserhahn","Frostschuz","Text","Ja oder Nein"]
[null,null,"Wasserverteilung","Aussenwasserhahn","Bemerkung","Text","---"]
[null,null,"Wasserverteilung","Wasserfilter","Mass in [Zoll]","Zahl","1,25"]
[null,null,"Wasserverteilung","Wasserfilter","Standort","Text","Sanitärverteilung"]
[null,null,"Wasserverteilung","Wasserfilter","Intervall [Jahr]","Zahl",1]
[null,null,"Wasserverteilung","Wasserfilter","Bemerkung","Text","---"]
[null,null,"Löschanlagen","Wasserlöschposten","Anzahl Wartungen pro Jahr","Text",1]
[null,null,"Brandmeldeanlagen","Brandmeldeanlage (BMA)","SV Certas","Zahl","V_0001201","Kann nicht durch Planer angegeben werden"]
[null,null,"Brandmeldeanlagen","Brandmeldeanlage (BMA)","SV IG TUS","Zahl","V_0000682","Kann nicht durch Planer angegeben werden"]
[null,null,"Sicherheitsanlagen","Einbruch- und Überfallmeldeanlage (EMA)","Alarm-Net.","Zahl",834033]
[null,null,"Sicherheitsanlagen","Einbruch- und Überfallmeldeanlage (EMA)","Certas","Zahl","V_1665"]

{"sheet":"Eingabe für Planer","index":3,"n_rows":75,"n_cols":10,"rows_kept":75,"cut":false,"hidden":false,"merged":[[2,11,14,11],[0,0,1,25],[17,3,17,6],[3,3,16,3],[2,0,64,2],[18,3,42,3],[2,3,2,4],[2,9,2,10],[8,9,9,10],[10,9,14,10],[2,8,64,8],[4,7,5,7],[6,7,7,7],[43,3,64,7],[15,9,64,11],[8,7,42,7],[6,9,7,10]]}
[]
[]
[null,null,null,"Auszufüllende Felder",null,"Beispiel","Eingabe","Erläuterungen",null,"Legende Farbcodes"]
[null,null,null,"Anlagenfelder","Artikelgruppe Name",{"$f":"G4","v":0},null,"Allgemeine Erläuterung",null,"Erforderte Eingabe"]
[null,null,null,null,"Anlagentyp (Beschreibung)",{"$f":"G5","v":0},null,{"$f":"IFERROR(INDEX(_xlfn._xlws.FILTER('Anlagenartenkatalog UZH'!F2:F180, ('Anlagenartenkatalog UZH'!D2:D180=G5) * ('Anlagenartenkatalog UZH'!B2:B180=G4)), 1), \"\")","v":""},null,"Eingabe Erfolgt"]
[null,null,null,null,"Artikelgruppe",{"$f":"G6","v":"00:00:00"},{"$f":"IFERROR(INDEX(_xlfn._xlws.FILTER('Anlagenartenkatalog UZH'!A:A, ('Anlagenartenkatalog UZH'!D:D=G5) * ('Anlagenartenkatalog UZH'!B:B=G4)), 1), \"\")","v":"00:00:00"},null,null,"Keine Eingabe nötig"]
[null,null,null,null,"MSRL-Code","GLL_C_G201_A001",null,"Erläuterung zur Bezeichnung (allgemeine Erläuterung beachten)\nDie Spalte \"C\", \"Bezeichnung\" ist grundsätzlich gleich wie die Beschreibung, aber bei mehreren gleichchnamigen Anlagen ist eine Nummerierung (oder eindeutige Identifikation wie rechts / links) hinzuzufügen z.B. \"Lüftungsanlage 1\" und \"Lüftungsanlage 2\", welche auch auf den Anlagen vor Ort angebracht ist."]
[null,null,null,null,"Bezeichnung",{"$f":"F5&CHAR(10)&\"+ Identifikation -> siehe Erläuterungen\"","v":"0\n+ Identifikation -> siehe Erläuterungen"}]
[null,null,null,null,"Objekt","GLL",null,null,null,"Das Makro darf nur mit Windows betrieben werden!"]
[null,null,null,null,"Raumkennzeichen","E-300"]
[null,null,null,null,"Hersteller/Marke","Schindler"]
[null,null,null,null,"Modell / Artikel","Getriebeaufzug"]
[null,null,null,null,"Seriennummer",15008703854]
[null,null,null,null,"Servicefirma","AS Aufzüge AG"]
[null,null,null,null,"Inbetriebnahmedatum","2050-04-30"]
[null,null,null,null,"Garantieende","2055-05-01"]
[null,null,null,null,"Erwartetes technisches Enddatum","2075-05-01"]
[null,null,null,"Anmerkung nur ausfüllen wenn die Spalte E dies verlangt!\t\t\t"]
[null,null,null,"Anmerkung",{"$f":"(IF(OR(ISNUMBER(E75),ISTEXT(E75)), E75, \"\"))","v":0},{"$f":"IF(OR(ISNUMBER(G75),ISTEXT(G75)), G75, \"\")","v":0}]
[null,null,null,null,{"$f":"IF(OR(ISNUMBER(E76),ISTEXT(E76)), E76, \"\")","v":""},{"$f":"IF(OR(ISNUMBER(G76),ISTEXT(G76)), G76, \"\")","v":""}]
[null,null,null,null,"",""]
[null,null,null,null,"",""]
[null,null,null,null,"",""]
[null,null,null,null,"",""]
[null,null,null,null,"",""]
[null,null,null,null,"",""]
[null,null,null,null,"",""]
[null,null,null,null,"",""]
[null,null,null,null,"",""]
[null,null,null,null,"",""]
[null,null,null,null,"",""]
[null,null,null,null,"",""]
[null,null,null,null,"",""]
[null,null,null,null,"",""]
[null,null,null,null,"",""]
[null,null,null,null,"",""]
[null,null,null,null,"",""]
[null,null,null,null,"",""]
[null,null,null,null,"",""]
[null,null,null,null,"",""]
[null,null,null,null,"",""]
[null,null,null,null,"",""]
[null,null,null,null,"",""]
[]
[]
[]
[]
[]
[]
[]
[]
[]
[]
[]
[]
[]
[]
[]
[]
[]
[]
[]
[]
[]
[]
[]
[]
[]
[]
[]
[]
[]
[]
[]
[null,null,{"$f":"_xlfn._xlws.FILTER(Parameter[],(Parameter[Anlagetyp]='Eingabe für Planer'!G5)*(Parameter[Anlageart]='Eingabe für Planer'!G4),\"\")","v":0},0,0,0,0,0]

{"sheet":"Kontrolle für Planer","index":4,"n_rows":6,"n_cols":15,"rows_kept":6,"cut":false,"hidden":false,"merged":[[2,18,2,31],[0,0,1,17],[0,18,1,18]]}
[]
[]
[null,"Anlagentyp (Beschreibung)","Artikelgruppe","MSRL-Code","Bezeichnung","Objekt","Raumkennzeichen","Hersteller/Marke","Modell / Artikel","Seriennummer","Servicefirma","Inbetriebnahmedatum","Garantieende","Erwartetes technisches Enddatum","Anmerkung"]
[null,{"$f":"'Eingabe für Planer'!G5","v":0},{"$f":"'Eingabe für Planer'!G6","v":0},{"$f":"'Eingabe für Planer'!G7","v":0},{"$f":"'Eingabe für Planer'!G8","v":0},{"$f":"'Eingabe für Planer'!G9","v":0},{"$f":"'Eingabe für Planer'!G10","v":0},{"$f":"'Eingabe für Planer'!G11","v":0},{"$f":"'Eingabe für Planer'!G12","v":0},{"$f":"'Eingabe für Planer'!G13","v":0},{"$f":"'Eingabe für Planer'!G14","v":0},{"$f":"'Eingabe für Planer'!G15","v":"00:00:00"},{"$f":"'Eingabe für Planer'!G16","v":"00:00:00"},{"$f":"'Eingabe für Planer'!G17","v":"00:00:00"},{"$f":"IF('Eingabe für Planer'!E19=\"\",\"\",'Eingabe für Planer'!E19&\": \"&IF('Eingabe für Planer'!G19=\"\",\" ???\",\" \"&'Eingabe für Planer'!G19))&\nCHAR(10)&\nIF('Eingabe für Planer'!E20=\"\",\"\",'Eingabe für Planer'!E20&\": \"&IF('Eingabe für Planer'!G20=\"\",\" ???\",\" \"&'Eingabe für Planer'!G20))&\nCHAR(10)&\nIF('Eingabe für Planer'!E21=\"\",\"\",'Eingabe für Planer'!E21&\": \"&IF('Eingabe für Planer'!G21=\"\",\" ???\",\" \"&'Eingabe für Planer'!G21))&\nCHAR(10)&\nIF('Eingabe für Planer'!E22=\"\",\"\",'Eingabe für Planer'!E22&\": \"&IF('Eingabe für Planer'!G22=\"\",\" ???\",\" \"&'Eingabe für Planer'!G22))&\nCHAR(10)&\nIF('Eingabe für Planer'!E23=\"\",\"\",'Eingabe für Planer'!E23&\": \"&IF('Eingabe für Planer'!G23=\"\",\" ???\",\" \"&'Eingabe für Planer'!G23))&\nCHAR(10)&\nIF('Eingabe für Planer'!E24=\"\",\"\",'Eingabe für Planer'!E24&\": \"&IF('Eingabe für Planer'!G24=\"\",\" ???\",\" \"&'Eingabe für Planer'!G24))&\nCHAR(10)&\nIF('Eingabe für Planer'!E25=\"\",\"\",'Eingabe für Planer'!E25&\": \"&IF('Eingabe für Planer'!G25=\"\",\" ???\",\" \"&'Eingabe für Planer'!G25))&\nCHAR(10)&\nIF('Eingabe für Planer'!E26=\"\",\"\",'Eingabe für Planer'!E26&\": \"&IF('Eingabe für Planer'!G26=\"\",\" ???\",\" \"&'Eingabe für Planer'!G26))&\nCHAR(10)&\nIF('Eingabe für Planer'!E27=\"\",\"\",'Eingabe für Planer'!E27&\": \"&IF('Eingabe für Planer'!G27=\"\",\" ???\",\" \"&'Eingabe für Planer'!G27))&\nCHAR(10)&\nIF('Eingabe für Planer'!E28=\"\",\"\",'Eingabe für Planer'!E28&\": \"&IF('Eingabe für Planer'!G28=\"\",\" ???\",\" \"&'Eingabe für Planer'!G28))&\nCHAR(10)&\nIF('Eingabe für Planer'!E29=\"\",\"\",'Eingabe für Planer'!E29&\": \"&IF('Eingabe für Planer'!G29=\"\",\" ???\",\" \"&'Eingabe für Planer'!G29))&\nCHAR(10)&\nIF('Eingabe für Planer'!E30=\"\",\"\",'Eingabe für Planer'!E30&\": \"&IF('Eingabe für Planer'!G30=\"\",\" ???\",\" \"&'Eingabe für Planer'!G30))&\nCHAR(10)&\nIF('Eingabe für Planer'!E31=\"\",\"\",'Eingabe für Planer'!E31&\": \"&IF('Eingabe für Planer'!G31=\"\",\" ???\",\" \"&'Eingabe für Planer'!G31))&\nCHAR(10)&\nIF('Eingabe für Planer'!E32=\"\",\"\",'Eingabe für Planer'!E32&\": \"&IF('Eingabe für Planer'!G32=\"\",\" ???\",\" \"&'Eingabe für Planer'!G32))&\nCHAR(10)&\nIF('Eingabe für Planer'!E33=\"\",\"\",'Eingabe für Planer'!E33&\": \"&IF('Eingabe für Planer'!G33=\"\",\" ???\",\" \"&'Eingabe für Planer'!G33))&\nCHAR(10)&\nIF('Eingabe für Planer'!E34=\"\",\"\",'Eingabe für Planer'!E34&\": \"&IF('Eingabe für Planer'!G34=\"\",\" ???\",\" \"&'Eingabe für Planer'!G34))&\nCHAR(10)&\nIF('Eingabe für Planer'!E35=\"\",\"\",'Eingabe für Planer'!E35&\": \"&IF('Eingabe für Planer'!G35=\"\",\" ???\",\" \"&'Eingabe für Planer'!G35))&\nCHAR(10)&\nIF('Eingabe für Planer'!E36=\"\",\"\",'Eingabe für Planer'!E36&\": \"&IF('Eingabe für Planer'!G36=\"\",\" ???\",\" \"&'Eingabe für Planer'!G36))&\nCHAR(10)&\nIF('Eingabe für Planer'!E37=\"\",\"\",'Eingabe für Planer'!E37&\": \"&IF('Eingabe für Planer'!G37=\"\",\" ???\",\" \"&'Eingabe für Planer'!G37))&\nCHAR(10)&\nIF('Eingabe für Planer'!E38=\"\",\"\",'Eingabe für Planer'!E38&\": \"&IF('Eingabe für Planer'!G38=\"\",\" ???\",\" \"&'Eingabe für Planer'!G38))&\nCHAR(10)&\nIF('Eingabe für Planer'!E39=\"\",\"\",'Eingabe für Planer'!E39&\": \"&IF('Eingabe für Planer'!G39=\"\",\" ???\",\" \"&'Eingabe für Planer'!G39))&\nCHAR(10)&\nIF('Eingabe für Planer'!E40=\"\",\"\",'Eingabe für Planer'!E40&\": \"&IF('Eingabe für Planer'!G40=\"\",\" ???\",\" \"&'Eingabe für Planer'!G40))&\nCHAR(10)&\nIF('Eingabe für Planer'!E41=\"\",\"\",'Eingabe für Planer'!E41&\": \"&IF('Eingabe für Planer'!G41=\"\",\" ???\",\" \"&'Eingabe für Planer'!G41))&\nCHAR(10)&\nIF('Eingabe für Planer'!E42=\"\",\"\",'Eingabe für Planer'!E42&\": \"&IF('Eingabe für Planer'!G42=\"\",\" ???\",\" \"&'Eingabe für Planer'!G42))","v":"0:  ???\n\n\n\n\n\n\n\n\n\n\n\n\n\n\n\n\n\n\n\n\n\n\n"}]
[]
[null,{"$f":"IF(E19=\"\",\"\",E19& IF(G19=\"\",\" ---\",\" \"&G19))","v":""}]

{"sheet":"UsrAnlagen","index":5,"n_rows":11,"n_cols":21,"rows_kept":11,"cut":false,"hidden":false,"merged":[]}
["Max. Zeichenanzahl Planon","100","255","100","43","100","1","","50","50","15","30","50","50","50","","","","","20",""]
["Obligatorisch","true","false","false","true","false","true","false","false","false","false","false","false","false","false","false","false","false","false","false","false"]
["Einmalig","true","false","false","false","false","false","false","false","false","false","false","false","false","false","false","false","false","false","false","false"]
["Feldtyp","String","String","String","InventoryItemGroup","BaseAsset","Boolean","StringExtended","Property","Property","String","String","String","String","Address","DateNeutral","DateNeutral","DateNeutral","DateNeutral","ServiceContract","DateNeutral"]
["Format","","","","","","","","","","","","","","","YYYY-MM-DD","YYYY-MM-DD","YYYY-MM-DD","YYYY-MM-DD","","YYYY-MM-DD"]
["Teil des Suchbegriffs","true","false","false","false","false","false","false","false","false","false","false","false","false","false","false","false","false","false","false","false"]
["Systemname","Code","Name","Comment","ItemGroupRef","ParentRef","IsSimple","Dossier","PropertyRef","UsrAnlagen.SpaceRef.PropertyRef","UsrAnlagen.SpaceRef.Code","Brand","FreeString63","FreeString66","ServiceCompanyRef","FirstUsedDate","WarrantyExpirationDate","EntryDate","ConstructionDate","FreeInteger2","ExpectedTechnicalEndDate"]
["Standardmäßig verfügbar","true","false","false","false","false","false","false","false","false","","false","false","false","false","false","false","false","false","false","false"]
["Bezeichnung","Code","Bezeichnung","Beschreibung","Artikelgruppe","Hauptanlage","Einfacher Bestandteil","Anmerkung","Objekt","Raum.Objekt","Raum.Raumkennzeichen","Hersteller /  Marke","Modell / Artikel","Seriennummer","Servicefirma","Inbetriebnahmedatum","Garantieende","Datum Erfassung","Herstellungs-/Baudatum","Servicevertrag","Erwartetes technisches Enddatum"]
[null,"GLL-US12-A005","Personenlift Nr. 42502790","Personenlift","2002-09-02",null,"true","Pikett-Tel.: 044 838 38 38\nStockwerke: 5 / E,F,G,H,J\nStandort Maschinenraum: Geschoss J-401 neben Lift\nTel. Typ: Exicall\nTel Nr.: 044 636 90 12\nLift ausser Betrieb nehmen bei Netzwerkunterbruch zur Sicherheit: Nein\nRufnummer Sim Karte: 69012\n","GLL","GLL","E-300","Gebauer","Getriebeaufzug",15008703854,"AS Aufzüge AG","2050-04-30","2055-05-01",null,"2049-05-01",null,"2075-05-01"]
[null,"BOT-§1654199408","Osmoseanlage 607706-01","Osmoseanlage","2004-05-02",null,"true","Vertrag Nr. BWT AG: 994780","BOT","BOT","M2-39","BWT","ELITE OECO 3 DUO","607706-01","Wasser AG","2020-06-30","2025-06-30",null,"2049-05-02",null,"2075-05-02"]